{"text_format":"1","workbook":"xlsx","n_sheets":1,"sheets":["Tabelle1"],"not_rendered":{"charts":0,"images":0,"macros":0,"external_links":0,"defined_names":0,"comments":0,"pivot_tables":0},"unopened":[],"bounds":{"document_bytes":16777216,"sheet_cells":100000,"rows_first":2000,"rows_last":500,"rows_between":2000,"halvings":0,"cell_chars":16384,"cell_head_chars":4096},"cells_cut":0,"cells_raw":0,"read":"whole","date_system":"1900"}

{"sheet":"Tabelle1","index":0,"n_rows":703,"n_cols":2,"rows_kept":703,"cut":false,"hidden":false,"merged":[]}
[null,{"$f":"IF(_xlfn._TRO_TRAILING(A:A)<>\"\",ROUNDUP(_xlfn.RANK.EQ(_xlfn._TRO_TRAILING(A:A),_xlfn._TRO_TRAILING(A:A),0)/COUNTA(_xlfn._TRO_TRAILING(A:A)),2),\"\")","v":{"$error":"#VALUE!"}}]
["1983-12-22",{"$f":"IF(_xlfn._TRO_TRAILING(A:A)<>\"\",ROUNDUP(_xlfn.RANK.EQ(_xlfn._TRO_TRAILING(A:A),_xlfn._TRO_TRAILING(A:A),0)/COUNTA(_xlfn._TRO_TRAILING(A:A)),2),\"\")","v":{"$error":"#VALUE!"}}]
[null,{"$f":"IF(_xlfn._TRO_TRAILING(A:A)<>\"\",ROUNDUP(_xlfn.RANK.EQ(_xlfn._TRO_TRAILING(A:A),_xlfn._TRO_TRAILING(A:A),0)/COUNTA(_xlfn._TRO_TRAILING(A:A)),2),\"\")","v":{"$error":"#VALUE!"}}]
["1996-12-10",{"$f":"IF(_xlfn._TRO_TRAILING(A:A)<>\"\",ROUNDUP(_xlfn.RANK.EQ(_xlfn._TRO_TRAILING(A:A),_xlfn._TRO_TRAILING(A:A),0)/COUNTA(_xlfn._TRO_TRAILING(A:A)),2),\"\")","v":{"$error":"#VALUE!"}}]
["1996-12-10",{"$f":"IF(_xlfn._TRO_TRAILING(A:A)<>\"\",ROUNDUP(_xlfn.RANK.EQ(_xlfn._TRO_TRAILING(A:A),_xlfn._TRO_TRAILING(A:A),0)/COUNTA(_xlfn._TRO_TRAILING(A:A)),2),\"\")","v":{"$error":"#VALUE!"}}]
["1965-04-25",{"$f":"IF(_xlfn._TRO_TRAILING(A:A)<>\"\",ROUNDUP(_xlfn.RANK.EQ(_xlfn._TRO_TRAILING(A:A),_xlfn._TRO_TRAILING(A:A),0)/COUNTA(_xlfn._TRO_TRAILING(A:A)),2),\"\")","v":{"$error":"#VALUE!"}}]
[null,{"$f":"IF(_xlfn._TRO_TRAILING(A:A)<>\"\",ROUNDUP(_xlfn.RANK.EQ(_xlfn._TRO_TRAILING(A:A),_xlfn._TRO_TRAILING(A:A),0)/COUNTA(_xlfn._TRO_TRAILING(A:A)),2),\"\")","v":{"$error":"#VALUE!"}}]
[null,{"$f":"IF(_xlfn._TRO_TRAILING(A:A)<>\"\",ROUNDUP(_xlfn.RANK.EQ(_xlfn._TRO_TRAILING(A:A),_xlfn._TRO_TRAILING(A:A),0)/COUNTA(_xlfn._TRO_TRAILING(A:A)),2),\"\")","v":{"$error":"#VALUE!"}}]
[null,{"$f":"IF(_xlfn._TRO_TRAILING(A:A)<>\"\",ROUNDUP(_xlfn.RANK.EQ(_xlfn._TRO_TRAILING(A:A),_xlfn._TRO_TRAILING(A:A),0)/COUNTA(_xlfn._TRO_TRAILING(A:A)),2),\"\")","v":{"$error":"#VALUE!"}}]
["1978-05-12",{"$f":"IF(_xlfn._TRO_TRAILING(A:A)<>\"\",ROUNDUP(_xlfn.RANK.EQ(_xlfn._TRO_TRAILING(A:A),_xlfn._TRO_TRAILING(A:A),0)/COUNTA(_xlfn._TRO_TRAILING(A:A)),2),\"\")","v":{"$error":"#VALUE!"}}]
["1978-05-12",{"$f":"IF(_xlfn._TRO_TRAILING(A:A)<>\"\",ROUNDUP(_xlfn.RANK.EQ(_xlfn._TRO_TRAILING(A:A),_xlfn._TRO_TRAILING(A:A),0)/COUNTA(_xlfn._TRO_TRAILING(A:A)),2),\"\")","v":{"$error":"#VALUE!"}}]
["1978-05-12",{"$f":"IF(_xlfn._TRO_TRAILING(A:A)<>\"\",ROUNDUP(_xlfn.RANK.EQ(_xlfn._TRO_TRAILING(A:A),_xlfn._TRO_TRAILING(A:A),0)/COUNTA(_xlfn._TRO_TRAILING(A:A)),2),\"\")","v":{"$error":"#VALUE!"}}]
[null,{"$f":"IF(_xlfn._TRO_TRAILING(A:A)<>\"\",ROUNDUP(_xlfn.RANK.EQ(_xlfn._TRO_TRAILING(A:A),_xlfn._TRO_TRAILING(A:A),0)/COUNTA(_xlfn._TRO_TRAILING(A:A)),2),\"\")","v":{"$error":"#VALUE!"}}]
[null,{"$f":"IF(_xlfn._TRO_TRAILING(A:A)<>\"\",ROUNDUP(_xlfn.RANK.EQ(_xlfn._TRO_TRAILING(A:A),_xlfn._TRO_TRAILING(A:A),0)/COUNTA(_xlfn._TRO_TRAILING(A:A)),2),\"\")","v":{"$error":"#VALUE!"}}]
[null,{"$f":"IF(_xlfn._TRO_TRAILING(A:A)<>\"\",ROUNDUP(_xlfn.RANK.EQ(_xlfn._TRO_TRAILING(A:A),_xlfn._TRO_TRAILING(A:A),0)/COUNTA(_xlfn._TRO_TRAILING(A:A)),2),\"\")","v":{"$error":"#VALUE!"}}]
[null,{"$f":"IF(_xlfn._TRO_TRAILING(A:A)<>\"\",ROUNDUP(_xlfn.RANK.EQ(_xlfn._TRO_TRAILING(A:A),_xlfn._TRO_TRAILING(A:A),0)/COUNTA(_xlfn._TRO_TRAILING(A:A)),2),\"\")","v":{"$error":"#VALUE!"}}]
["1992-06-06",{"$f":"IF(_xlfn._TRO_TRAILING(A:A)<>\"\",ROUNDUP(_xlfn.RANK.EQ(_xlfn._TRO_TRAILING(A:A),_xlfn._TRO_TRAILING(A:A),0)/COUNTA(_xlfn._TRO_TRAILING(A:A)),2),\"\")","v":{"$error":"#VALUE!"}}]
["1992-06-06",{"$f":"IF(_xlfn._TRO_TRAILING(A:A)<>\"\",ROUNDUP(_xlfn.RANK.EQ(_xlfn._TRO_TRAILING(A:A),_xlfn._TRO_TRAILING(A:A),0)/COUNTA(_xlfn._TRO_TRAILING(A:A)),2),\"\")","v":{"$error":"#VALUE!"}}]
[null,{"$f":"IF(_xlfn._TRO_TRAILING(A:A)<>\"\",ROUNDUP(_xlfn.RANK.EQ(_xlfn._TRO_TRAILING(A:A),_xlfn._TRO_TRAILING(A:A),0)/COUNTA(_xlfn._TRO_TRAILING(A:A)),2),\"\")","v":{"$error":"#VALUE!"}}]
["1973-02-15",{"$f":"IF(_xlfn._TRO_TRAILING(A:A)<>\"\",ROUNDUP(_xlfn.RANK.EQ(_xlfn._TRO_TRAILING(A:A),_xlfn._TRO_TRAILING(A:A),0)/COUNTA(_xlfn._TRO_TRAILING(A:A)),2),\"\")","v":{"$error":"#VALUE!"}}]
["1973-02-15",{"$f":"IF(_xlfn._TRO_TRAILING(A:A)<>\"\",ROUNDUP(_xlfn.RANK.EQ(_xlfn._TRO_TRAILING(A:A),_xlfn._TRO_TRAILING(A:A),0)/COUNTA(_xlfn._TRO_TRAILING(A:A)),2),\"\")","v":{"$error":"#VALUE!"}}]
["1985-05-28",{"$f":"IF(_xlfn._TRO_TRAILING(A:A)<>\"\",ROUNDUP(_xlfn.RANK.EQ(_xlfn._TRO_TRAILING(A:A),_xlfn._TRO_TRAILING(A:A),0)/COUNTA(_xlfn._TRO_TRAILING(A:A)),2),\"\")","v":{"$error":"#VALUE!"}}]
["1985-05-28",{"$f":"IF(_xlfn._TRO_TRAILING(A:A)<>\"\",ROUNDUP(_xlfn.RANK.EQ(_xlfn._TRO_TRAILING(A:A),_xlfn._TRO_TRAILING(A:A),0)/COUNTA(_xlfn._TRO_TRAILING(A:A)),2),\"\")","v":{"$error":"#VALUE!"}}]
["1985-05-28",{"$f":"IF(_xlfn._TRO_TRAILING(A:A)<>\"\",ROUNDUP(_xlfn.RANK.EQ(_xlfn._TRO_TRAILING(A:A),_xlfn._TRO_TRAILING(A:A),0)/COUNTA(_xlfn._TRO_TRAILING(A:A)),2),\"\")","v":{"$error":"#VALUE!"}}]
["1985-05-28",{"$f":"IF(_xlfn._TRO_TRAILING(A:A)<>\"\",ROUNDUP(_xlfn.RANK.EQ(_xlfn._TRO_TRAILING(A:A),_xlfn._TRO_TRAILING(A:A),0)/COUNTA(_xlfn._TRO_TRAILING(A:A)),2),\"\")","v":{"$error":"#VALUE!"}}]
["1985-05-28",{"$f":"IF(_xlfn._TRO_TRAILING(A:A)<>\"\",ROUNDUP(_xlfn.RANK.EQ(_xlfn._TRO_TRAILING(A:A),_xlfn._TRO_TRAILING(A:A),0)/COUNTA(_xlfn._TRO_TRAILING(A:A)),2),\"\")","v":{"$error":"#VALUE!"}}]
["1942-11-16",{"$f":"IF(_xlfn._TRO_TRAILING(A:A)<>\"\",ROUNDUP(_xlfn.RANK.EQ(_xlfn._TRO_TRAILING(A:A),_xlfn._TRO_TRAILING(A:A),0)/COUNTA(_xlfn._TRO_TRAILING(A:A)),2),\"\")","v":{"$error":"#VALUE!"}}]
["1942-11-16",{"$f":"IF(_xlfn._TRO_TRAILING(A:A)<>\"\",ROUNDUP(_xlfn.RANK.EQ(_xlfn._TRO_TRAILING(A:A),_xlfn._TRO_TRAILING(A:A),0)/COUNTA(_xlfn._TRO_TRAILING(A:A)),2),\"\")","v":{"$error":"#VALUE!"}}]
["1944-03-27",{"$f":"IF(_xlfn._TRO_TRAILING(A:A)<>\"\",ROUNDUP(_xlfn.RANK.EQ(_xlfn._TRO_TRAILING(A:A),_xlfn._TRO_TRAILING(A:A),0)/COUNTA(_xlfn._TRO_TRAILING(A:A)),2),\"\")","v":{"$error":"#VALUE!"}}]
["1944-03-27",{"$f":"IF(_xlfn._TRO_TRAILING(A:A)<>\"\",ROUNDUP(_xlfn.RANK.EQ(_xlfn._TRO_TRAILING(A:A),_xlfn._TRO_TRAILING(A:A),0)/COUNTA(_xlfn._TRO_TRAILING(A:A)),2),\"\")","v":{"$error":"#VALUE!"}}]
[null,{"$f":"IF(_xlfn._TRO_TRAILING(A:A)<>\"\",ROUNDUP(_xlfn.RANK.EQ(_xlfn._TRO_TRAILING(A:A),_xlfn._TRO_TRAILING(A:A),0)/COUNTA(_xlfn._TRO_TRAILING(A:A)),2),\"\")","v":{"$error":"#VALUE!"}}]
["1988-04-15",{"$f":"IF(_xlfn._TRO_TRAILING(A:A)<>\"\",ROUNDUP(_xlfn.RANK.EQ(_xlfn._TRO_TRAILING(A:A),_xlfn._TRO_TRAILING(A:A),0)/COUNTA(_xlfn._TRO_TRAILING(A:A)),2),\"\")","v":{"$error":"#VALUE!"}}]
["1988-04-15",{"$f":"IF(_xlfn._TRO_TRAILING(A:A)<>\"\",ROUNDUP(_xlfn.RANK.EQ(_xlfn._TRO_TRAILING(A:A),_xlfn._TRO_TRAILING(A:A),0)/COUNTA(_xlfn._TRO_TRAILING(A:A)),2),\"\")","v":{"$error":"#VALUE!"}}]
["1988-04-15",{"$f":"IF(_xlfn._TRO_TRAILING(A:A)<>\"\",ROUNDUP(_xlfn.RANK.EQ(_xlfn._TRO_TRAILING(A:A),_xlfn._TRO_TRAILING(A:A),0)/COUNTA(_xlfn._TRO_TRAILING(A:A)),2),\"\")","v":{"$error":"#VALUE!"}}]
["1979-11-12",{"$f":"IF(_xlfn._TRO_TRAILING(A:A)<>\"\",ROUNDUP(_xlfn.RANK.EQ(_xlfn._TRO_TRAILING(A:A),_xlfn._TRO_TRAILING(A:A),0)/COUNTA(_xlfn._TRO_TRAILING(A:A)),2),\"\")","v":{"$error":"#VALUE!"}}]
["1966-05-19",{"$f":"IF(_xlfn._TRO_TRAILING(A:A)<>\"\",ROUNDUP(_xlfn.RANK.EQ(_xlfn._TRO_TRAILING(A:A),_xlfn._TRO_TRAILING(A:A),0)/COUNTA(_xlfn._TRO_TRAILING(A:A)),2),\"\")","v":{"$error":"#VALUE!"}}]
["1966-05-19",{"$f":"IF(_xlfn._TRO_TRAILING(A:A)<>\"\",ROUNDUP(_xlfn.RANK.EQ(_xlfn._TRO_TRAILING(A:A),_xlfn._TRO_TRAILING(A:A),0)/COUNTA(_xlfn._TRO_TRAILING(A:A)),2),\"\")","v":{"$error":"#VALUE!"}}]
["1966-05-19",{"$f":"IF(_xlfn._TRO_TRAILING(A:A)<>\"\",ROUNDUP(_xlfn.RANK.EQ(_xlfn._TRO_TRAILING(A:A),_xlfn._TRO_TRAILING(A:A),0)/COUNTA(_xlfn._TRO_TRAILING(A:A)),2),\"\")","v":{"$error":"#VALUE!"}}]
["1979-12-30",{"$f":"IF(_xlfn._TRO_TRAILING(A:A)<>\"\",ROUNDUP(_xlfn.RANK.EQ(_xlfn._TRO_TRAILING(A:A),_xlfn._TRO_TRAILING(A:A),0)/COUNTA(_xlfn._TRO_TRAILING(A:A)),2),\"\")","v":{"$error":"#VALUE!"}}]
["1985-12-26",{"$f":"IF(_xlfn._TRO_TRAILING(A:A)<>\"\",ROUNDUP(_xlfn.RANK.EQ(_xlfn._TRO_TRAILING(A:A),_xlfn._TRO_TRAILING(A:A),0)/COUNTA(_xlfn._TRO_TRAILING(A:A)),2),\"\")","v":{"$error":"#VALUE!"}}]
[null,{"$f":"IF(_xlfn._TRO_TRAILING(A:A)<>\"\",ROUNDUP(_xlfn.RANK.EQ(_xlfn._TRO_TRAILING(A:A),_xlfn._TRO_TRAILING(A:A),0)/COUNTA(_xlfn._TRO_TRAILING(A:A)),2),\"\")","v":{"$error":"#VALUE!"}}]
["1981-01-19",{"$f":"IF(_xlfn._TRO_TRAILING(A:A)<>\"\",ROUNDUP(_xlfn.RANK.EQ(_xlfn._TRO_TRAILING(A:A),_xlfn._TRO_TRAILING(A:A),0)/COUNTA(_xlfn._TRO_TRAILING(A:A)),2),\"\")","v":{"$error":"#VALUE!"}}]
[null,{"$f":"IF(_xlfn._TRO_TRAILING(A:A)<>\"\",ROUNDUP(_xlfn.RANK.EQ(_xlfn._TRO_TRAILING(A:A),_xlfn._TRO_TRAILING(A:A),0)/COUNTA(_xlfn._TRO_TRAILING(A:A)),2),\"\")","v":{"$error":"#VALUE!"}}]
[null,{"$f":"IF(_xlfn._TRO_TRAILING(A:A)<>\"\",ROUNDUP(_xlfn.RANK.EQ(_xlfn._TRO_TRAILING(A:A),_xlfn._TRO_TRAILING(A:A),0)/COUNTA(_xlfn._TRO_TRAILING(A:A)),2),\"\")","v":{"$error":"#VALUE!"}}]
["1994-12-09",{"$f":"IF(_xlfn._TRO_TRAILING(A:A)<>\"\",ROUNDUP(_xlfn.RANK.EQ(_xlfn._TRO_TRAILING(A:A),_xlfn._TRO_TRAILING(A:A),0)/COUNTA(_xlfn._TRO_TRAILING(A:A)),2),\"\")","v":{"$error":"#VALUE!"}}]
["1968-11-29",{"$f":"IF(_xlfn._TRO_TRAILING(A:A)<>\"\",ROUNDUP(_xlfn.RANK.EQ(_xlfn._TRO_TRAILING(A:A),_xlfn._TRO_TRAILING(A:A),0)/COUNTA(_xlfn._TRO_TRAILING(A:A)),2),\"\")","v":{"$error":"#VALUE!"}}]
["1938-02-27",{"$f":"IF(_xlfn._TRO_TRAILING(A:A)<>\"\",ROUNDUP(_xlfn.RANK.EQ(_xlfn._TRO_TRAILING(A:A),_xlfn._TRO_TRAILING(A:A),0)/COUNTA(_xlfn._TRO_TRAILING(A:A)),2),\"\")","v":{"$error":"#VALUE!"}}]
["1938-02-27",{"$f":"IF(_xlfn._TRO_TRAILING(A:A)<>\"\",ROUNDUP(_xlfn.RANK.EQ(_xlfn._TRO_TRAILING(A:A),_xlfn._TRO_TRAILING(A:A),0)/COUNTA(_xlfn._TRO_TRAILING(A:A)),2),\"\")","v":{"$error":"#VALUE!"}}]
["1938-02-27",{"$f":"IF(_xlfn._TRO_TRAILING(A:A)<>\"\",ROUNDUP(_xlfn.RANK.EQ(_xlfn._TRO_TRAILING(A:A),_xlfn._TRO_TRAILING(A:A),0)/COUNTA(_xlfn._TRO_TRAILING(A:A)),2),\"\")","v":{"$error":"#VALUE!"}}]
["1938-02-27",{"$f":"IF(_xlfn._TRO_TRAILING(A:A)<>\"\",ROUNDUP(_xlfn.RANK.EQ(_xlfn._TRO_TRAILING(A:A),_xlfn._TRO_TRAILING(A:A),0)/COUNTA(_xlfn._TRO_TRAILING(A:A)),2),\"\")","v":{"$error":"#VALUE!"}}]
["1938-02-27",{"$f":"IF(_xlfn._TRO_TRAILING(A:A)<>\"\",ROUNDUP(_xlfn.RANK.EQ(_xlfn._TRO_TRAILING(A:A),_xlfn._TRO_TRAILING(A:A),0)/COUNTA(_xlfn._TRO_TRAILING(A:A)),2),\"\")","v":{"$error":"#VALUE!"}}]
["1938-02-27",{"$f":"IF(_xlfn._TRO_TRAILING(A:A)<>\"\",ROUNDUP(_xlfn.RANK.EQ(_xlfn._TRO_TRAILING(A:A),_xlfn._TRO_TRAILING(A:A),0)/COUNTA(_xlfn._TRO_TRAILING(A:A)),2),\"\")","v":{"$error":"#VALUE!"}}]
["1938-02-27",{"$f":"IF(_xlfn._TRO_TRAILING(A:A)<>\"\",ROUNDUP(_xlfn.RANK.EQ(_xlfn._TRO_TRAILING(A:A),_xlfn._TRO_TRAILING(A:A),0)/COUNTA(_xlfn._TRO_TRAILING(A:A)),2),\"\")","v":{"$error":"#VALUE!"}}]
[null,{"$f":"IF(_xlfn._TRO_TRAILING(A:A)<>\"\",ROUNDUP(_xlfn.RANK.EQ(_xlfn._TRO_TRAILING(A:A),_xlfn._TRO_TRAILING(A:A),0)/COUNTA(_xlfn._TRO_TRAILING(A:A)),2),\"\")","v":{"$error":"#VALUE!"}}]
["1974-03-21",{"$f":"IF(_xlfn._TRO_TRAILING(A:A)<>\"\",ROUNDUP(_xlfn.RANK.EQ(_xlfn._TRO_TRAILING(A:A),_xlfn._TRO_TRAILING(A:A),0)/COUNTA(_xlfn._TRO_TRAILING(A:A)),2),\"\")","v":{"$error":"#VALUE!"}}]
["1974-03-21",{"$f":"IF(_xlfn._TRO_TRAILING(A:A)<>\"\",ROUNDUP(_xlfn.RANK.EQ(_xlfn._TRO_TRAILING(A:A),_xlfn._TRO_TRAILING(A:A),0)/COUNTA(_xlfn._TRO_TRAILING(A:A)),2),\"\")","v":{"$error":"#VALUE!"}}]
["1974-03-21",{"$f":"IF(_xlfn._TRO_TRAILING(A:A)<>\"\",ROUNDUP(_xlfn.RANK.EQ(_xlfn._TRO_TRAILING(A:A),_xlfn._TRO_TRAILING(A:A),0)/COUNTA(_xlfn._TRO_TRAILING(A:A)),2),\"\")","v":{"$error":"#VALUE!"}}]
["1997-04-28",{"$f":"IF(_xlfn._TRO_TRAILING(A:A)<>\"\",ROUNDUP(_xlfn.RANK.EQ(_xlfn._TRO_TRAILING(A:A),_xlfn._TRO_TRAILING(A:A),0)/COUNTA(_xlfn._TRO_TRAILING(A:A)),2),\"\")","v":{"$error":"#VALUE!"}}]
["1997-04-28",{"$f":"IF(_xlfn._TRO_TRAILING(A:A)<>\"\",ROUNDUP(_xlfn.RANK.EQ(_xlfn._TRO_TRAILING(A:A),_xlfn._TRO_TRAILING(A:A),0)/COUNTA(_xlfn._TRO_TRAILING(A:A)),2),\"\")","v":{"$error":"#VALUE!"}}]
["1984-06-27",{"$f":"IF(_xlfn._TRO_TRAILING(A:A)<>\"\",ROUNDUP(_xlfn.RANK.EQ(_xlfn._TRO_TRAILING(A:A),_xlfn._TRO_TRAILING(A:A),0)/COUNTA(_xlfn._TRO_TRAILING(A:A)),2),\"\")","v":{"$error":"#VALUE!"}}]
["1984-06-27",{"$f":"IF(_xlfn._TRO_TRAILING(A:A)<>\"\",ROUNDUP(_xlfn.RANK.EQ(_xlfn._TRO_TRAILING(A:A),_xlfn._TRO_TRAILING(A:A),0)/COUNTA(_xlfn._TRO_TRAILING(A:A)),2),\"\")","v":{"$error":"#VALUE!"}}]
["1984-06-27",{"$f":"IF(_xlfn._TRO_TRAILING(A:A)<>\"\",ROUNDUP(_xlfn.RANK.EQ(_xlfn._TRO_TRAILING(A:A),_xlfn._TRO_TRAILING(A:A),0)/COUNTA(_xlfn._TRO_TRAILING(A:A)),2),\"\")","v":{"$error":"#VALUE!"}}]
[null,{"$f":"IF(_xlfn._TRO_TRAILING(A:A)<>\"\",ROUNDUP(_xlfn.RANK.EQ(_xlfn._TRO_TRAILING(A:A),_xlfn._TRO_TRAILING(A:A),0)/COUNTA(_xlfn._TRO_TRAILING(A:A)),2),\"\")","v":{"$error":"#VALUE!"}}]
["1987-02-25",{"$f":"IF(_xlfn._TRO_TRAILING(A:A)<>\"\",ROUNDUP(_xlfn.RANK.EQ(_xlfn._TRO_TRAILING(A:A),_xlfn._TRO_TRAILING(A:A),0)/COUNTA(_xlfn._TRO_TRAILING(A:A)),2),\"\")","v":{"$error":"#VALUE!"}}]
[null,{"$f":"IF(_xlfn._TRO_TRAILING(A:A)<>\"\",ROUNDUP(_xlfn.RANK.EQ(_xlfn._TRO_TRAILING(A:A),_xlfn._TRO_TRAILING(A:A),0)/COUNTA(_xlfn._TRO_TRAILING(A:A)),2),\"\")","v":{"$error":"#VALUE!"}}]
["1992-03-05",{"$f":"IF(_xlfn._TRO_TRAILING(A:A)<>\"\",ROUNDUP(_xlfn.RANK.EQ(_xlfn._TRO_TRAILING(A:A),_xlfn._TRO_TRAILING(A:A),0)/COUNTA(_xlfn._TRO_TRAILING(A:A)),2),\"\")","v":{"$error":"#VALUE!"}}]
["1992-03-05",{"$f":"IF(_xlfn._TRO_TRAILING(A:A)<>\"\",ROUNDUP(_xlfn.RANK.EQ(_xlfn._TRO_TRAILING(A:A),_xlfn._TRO_TRAILING(A:A),0)/COUNTA(_xlfn._TRO_TRAILING(A:A)),2),\"\")","v":{"$error":"#VALUE!"}}]
["2000-02-16",{"$f":"IF(_xlfn._TRO_TRAILING(A:A)<>\"\",ROUNDUP(_xlfn.RANK.EQ(_xlfn._TRO_TRAILING(A:A),_xlfn._TRO_TRAILING(A:A),0)/COUNTA(_xlfn._TRO_TRAILING(A:A)),2),\"\")","v":{"$error":"#VALUE!"}}]
["2000-02-16",{"$f":"IF(_xlfn._TRO_TRAILING(A:A)<>\"\",ROUNDUP(_xlfn.RANK.EQ(_xlfn._TRO_TRAILING(A:A),_xlfn._TRO_TRAILING(A:A),0)/COUNTA(_xlfn._TRO_TRAILING(A:A)),2),\"\")","v":{"$error":"#VALUE!"}}]
["1981-01-21",{"$f":"IF(_xlfn._TRO_TRAILING(A:A)<>\"\",ROUNDUP(_xlfn.RANK.EQ(_xlfn._TRO_TRAILING(A:A),_xlfn._TRO_TRAILING(A:A),0)/COUNTA(_xlfn._TRO_TRAILING(A:A)),2),\"\")","v":{"$error":"#VALUE!"}}]
[null,{"$f":"IF(_xlfn._TRO_TRAILING(A:A)<>\"\",ROUNDUP(_xlfn.RANK.EQ(_xlfn._TRO_TRAILING(A:A),_xlfn._TRO_TRAILING(A:A),0)/COUNTA(_xlfn._TRO_TRAILING(A:A)),2),\"\")","v":{"$error":"#VALUE!"}}]
["1980-03-22",{"$f":"IF(_xlfn._TRO_TRAILING(A:A)<>\"\",ROUNDUP(_xlfn.RANK.EQ(_xlfn._TRO_TRAILING(A:A),_xlfn._TRO_TRAILING(A:A),0)/COUNTA(_xlfn._TRO_TRAILING(A:A)),2),\"\")","v":{"$error":"#VALUE!"}}]
["1980-03-22",{"$f":"IF(_xlfn._TRO_TRAILING(A:A)<>\"\",ROUNDUP(_xlfn.RANK.EQ(_xlfn._TRO_TRAILING(A:A),_xlfn._TRO_TRAILING(A:A),0)/COUNTA(_xlfn._TRO_TRAILING(A:A)),2),\"\")","v":{"$error":"#VALUE!"}}]
["1980-03-22",{"$f":"IF(_xlfn._TRO_TRAILING(A:A)<>\"\",ROUNDUP(_xlfn.RANK.EQ(_xlfn._TRO_TRAILING(A:A),_xlfn._TRO_TRAILING(A:A),0)/COUNTA(_xlfn._TRO_TRAILING(A:A)),2),\"\")","v":{"$error":"#VALUE!"}}]
["1985-04-15",{"$f":"IF(_xlfn._TRO_TRAILING(A:A)<>\"\",ROUNDUP(_xlfn.RANK.EQ(_xlfn._TRO_TRAILING(A:A),_xlfn._TRO_TRAILING(A:A),0)/COUNTA(_xlfn._TRO_TRAILING(A:A)),2),\"\")","v":{"$error":"#VALUE!"}}]
["1985-04-15",{"$f":"IF(_xlfn._TRO_TRAILING(A:A)<>\"\",ROUNDUP(_xlfn.RANK.EQ(_xlfn._TRO_TRAILING(A:A),_xlfn._TRO_TRAILING(A:A),0)/COUNTA(_xlfn._TRO_TRAILING(A:A)),2),\"\")","v":{"$error":"#VALUE!"}}]
["1985-04-15",{"$f":"IF(_xlfn._TRO_TRAILING(A:A)<>\"\",ROUNDUP(_xlfn.RANK.EQ(_xlfn._TRO_TRAILING(A:A),_xlfn._TRO_TRAILING(A:A),0)/COUNTA(_xlfn._TRO_TRAILING(A:A)),2),\"\")","v":{"$error":"#VALUE!"}}]
["1985-04-15",{"$f":"IF(_xlfn._TRO_TRAILING(A:A)<>\"\",ROUNDUP(_xlfn.RANK.EQ(_xlfn._TRO_TRAILING(A:A),_xlfn._TRO_TRAILING(A:A),0)/COUNTA(_xlfn._TRO_TRAILING(A:A)),2),\"\")","v":{"$error":"#VALUE!"}}]
["1985-04-15",{"$f":"IF(_xlfn._TRO_TRAILING(A:A)<>\"\",ROUNDUP(_xlfn.RANK.EQ(_xlfn._TRO_TRAILING(A:A),_xlfn._TRO_TRAILING(A:A),0)/COUNTA(_xlfn._TRO_TRAILING(A:A)),2),\"\")","v":{"$error":"#VALUE!"}}]
[null,{"$f":"IF(_xlfn._TRO_TRAILING(A:A)<>\"\",ROUNDUP(_xlfn.RANK.EQ(_xlfn._TRO_TRAILING(A:A),_xlfn._TRO_TRAILING(A:A),0)/COUNTA(_xlfn._TRO_TRAILING(A:A)),2),\"\")","v":{"$error":"#VALUE!"}}]
[null,{"$f":"IF(_xlfn._TRO_TRAILING(A:A)<>\"\",ROUNDUP(_xlfn.RANK.EQ(_xlfn._TRO_TRAILING(A:A),_xlfn._TRO_TRAILING(A:A),0)/COUNTA(_xlfn._TRO_TRAILING(A:A)),2),\"\")","v":{"$error":"#VALUE!"}}]
[null,{"$f":"IF(_xlfn._TRO_TRAILING(A:A)<>\"\",ROUNDUP(_xlfn.RANK.EQ(_xlfn._TRO_TRAILING(A:A),_xlfn._TRO_TRAILING(A:A),0)/COUNTA(_xlfn._TRO_TRAILING(A:A)),2),\"\")","v":{"$error":"#VALUE!"}}]
[null,{"$f":"IF(_xlfn._TRO_TRAILING(A:A)<>\"\",ROUNDUP(_xlfn.RANK.EQ(_xlfn._TRO_TRAILING(A:A),_xlfn._TRO_TRAILING(A:A),0)/COUNTA(_xlfn._TRO_TRAILING(A:A)),2),\"\")","v":{"$error":"#VALUE!"}}]
[null,{"$f":"IF(_xlfn._TRO_TRAILING(A:A)<>\"\",ROUNDUP(_xlfn.RANK.EQ(_xlfn._TRO_TRAILING(A:A),_xlfn._TRO_TRAILING(A:A),0)/COUNTA(_xlfn._TRO_TRAILING(A:A)),2),\"\")","v":{"$error":"#VALUE!"}}]
["1959-07-26",{"$f":"IF(_xlfn._TRO_TRAILING(A:A)<>\"\",ROUNDUP(_xlfn.RANK.EQ(_xlfn._TRO_TRAILING(A:A),_xlfn._TRO_TRAILING(A:A),0)/COUNTA(_xlfn._TRO_TRAILING(A:A)),2),\"\")","v":{"$error":"#VALUE!"}}]
["1954-07-01",{"$f":"IF(_xlfn._TRO_TRAILING(A:A)<>\"\",ROUNDUP(_xlfn.RANK.EQ(_xlfn._TRO_TRAILING(A:A),_xlfn._TRO_TRAILING(A:A),0)/COUNTA(_xlfn._TRO_TRAILING(A:A)),2),\"\")","v":{"$error":"#VALUE!"}}]
["1954-07-01",{"$f":"IF(_xlfn._TRO_TRAILING(A:A)<>\"\",ROUNDUP(_xlfn.RANK.EQ(_xlfn._TRO_TRAILING(A:A),_xlfn._TRO_TRAILING(A:A),0)/COUNTA(_xlfn._TRO_TRAILING(A:A)),2),\"\")","v":{"$error":"#VALUE!"}}]
["1954-07-01",{"$f":"IF(_xlfn._TRO_TRAILING(A:A)<>\"\",ROUNDUP(_xlfn.RANK.EQ(_xlfn._TRO_TRAILING(A:A),_xlfn._TRO_TRAILING(A:A),0)/COUNTA(_xlfn._TRO_TRAILING(A:A)),2),\"\")","v":{"$error":"#VALUE!"}}]
["1954-07-01",{"$f":"IF(_xlfn._TRO_TRAILING(A:A)<>\"\",ROUNDUP(_xlfn.RANK.EQ(_xlfn._TRO_TRAILING(A:A),_xlfn._TRO_TRAILING(A:A),0)/COUNTA(_xlfn._TRO_TRAILING(A:A)),2),\"\")","v":{"$error":"#VALUE!"}}]
["1954-07-01",{"$f":"IF(_xlfn._TRO_TRAILING(A:A)<>\"\",ROUNDUP(_xlfn.RANK.EQ(_xlfn._TRO_TRAILING(A:A),_xlfn._TRO_TRAILING(A:A),0)/COUNTA(_xlfn._TRO_TRAILING(A:A)),2),\"\")","v":{"$error":"#VALUE!"}}]
["1954-07-01",{"$f":"IF(_xlfn._TRO_TRAILING(A:A)<>\"\",ROUNDUP(_xlfn.RANK.EQ(_xlfn._TRO_TRAILING(A:A),_xlfn._TRO_TRAILING(A:A),0)/COUNTA(_xlfn._TRO_TRAILING(A:A)),2),\"\")","v":{"$error":"#VALUE!"}}]
["1954-07-01",{"$f":"IF(_xlfn._TRO_TRAILING(A:A)<>\"\",ROUNDUP(_xlfn.RANK.EQ(_xlfn._TRO_TRAILING(A:A),_xlfn._TRO_TRAILING(A:A),0)/COUNTA(_xlfn._TRO_TRAILING(A:A)),2),\"\")","v":{"$error":"#VALUE!"}}]
["1954-07-01",{"$f":"IF(_xlfn._TRO_TRAILING(A:A)<>\"\",ROUNDUP(_xlfn.RANK.EQ(_xlfn._TRO_TRAILING(A:A),_xlfn._TRO_TRAILING(A:A),0)/COUNTA(_xlfn._TRO_TRAILING(A:A)),2),\"\")","v":{"$error":"#VALUE!"}}]
["1954-07-01",{"$f":"IF(_xlfn._TRO_TRAILING(A:A)<>\"\",ROUNDUP(_xlfn.RANK.EQ(_xlfn._TRO_TRAILING(A:A),_xlfn._TRO_TRAILING(A:A),0)/COUNTA(_xlfn._TRO_TRAILING(A:A)),2),\"\")","v":{"$error":"#VALUE!"}}]
["1954-07-01",{"$f":"IF(_xlfn._TRO_TRAILING(A:A)<>\"\",ROUNDUP(_xlfn.RANK.EQ(_xlfn._TRO_TRAILING(A:A),_xlfn._TRO_TRAILING(A:A),0)/COUNTA(_xlfn._TRO_TRAILING(A:A)),2),\"\")","v":{"$error":"#VALUE!"}}]
["1954-07-01",{"$f":"IF(_xlfn._TRO_TRAILING(A:A)<>\"\",ROUNDUP(_xlfn.RANK.EQ(_xlfn._TRO_TRAILING(A:A),_xlfn._TRO_TRAILING(A:A),0)/COUNTA(_xlfn._TRO_TRAILING(A:A)),2),\"\")","v":{"$error":"#VALUE!"}}]
["1954-07-01",{"$f":"IF(_xlfn._TRO_TRAILING(A:A)<>\"\",ROUNDUP(_xlfn.RANK.EQ(_xlfn._TRO_TRAILING(A:A),_xlfn._TRO_TRAILING(A:A),0)/COUNTA(_xlfn._TRO_TRAILING(A:A)),2),\"\")","v":{"$error":"#VALUE!"}}]
["1954-07-01",{"$f":"IF(_xlfn._TRO_TRAILING(A:A)<>\"\",ROUNDUP(_xlfn.RANK.EQ(_xlfn._TRO_TRAILING(A:A),_xlfn._TRO_TRAILING(A:A),0)/COUNTA(_xlfn._TRO_TRAILING(A:A)),2),\"\")","v":{"$error":"#VALUE!"}}]
["1954-07-01",{"$f":"IF(_xlfn._TRO_TRAILING(A:A)<>\"\",ROUNDUP(_xlfn.RANK.EQ(_xlfn._TRO_TRAILING(A:A),_xlfn._TRO_TRAILING(A:A),0)/COUNTA(_xlfn._TRO_TRAILING(A:A)),2),\"\")","v":{"$error":"#VALUE!"}}]
["1954-07-01",{"$f":"IF(_xlfn._TRO_TRAILING(A:A)<>\"\",ROUNDUP(_xlfn.RANK.EQ(_xlfn._TRO_TRAILING(A:A),_xlfn._TRO_TRAILING(A:A),0)/COUNTA(_xlfn._TRO_TRAILING(A:A)),2),\"\")","v":{"$error":"#VALUE!"}}]
["1954-07-01",{"$f":"IF(_xlfn._TRO_TRAILING(A:A)<>\"\",ROUNDUP(_xlfn.RANK.EQ(_xlfn._TRO_TRAILING(A:A),_xlfn._TRO_TRAILING(A:A),0)/COUNTA(_xlfn._TRO_TRAILING(A:A)),2),\"\")","v":{"$error":"#VALUE!"}}]
["1954-07-01",{"$f":"IF(_xlfn._TRO_TRAILING(A:A)<>\"\",ROUNDUP(_xlfn.RANK.EQ(_xlfn._TRO_TRAILING(A:A),_xlfn._TRO_TRAILING(A:A),0)/COUNTA(_xlfn._TRO_TRAILING(A:A)),2),\"\")","v":{"$error":"#VALUE!"}}]
["1954-07-01",{"$f":"IF(_xlfn._TRO_TRAILING(A:A)<>\"\",ROUNDUP(_xlfn.RANK.EQ(_xlfn._TRO_TRAILING(A:A),_xlfn._TRO_TRAILING(A:A),0)/COUNTA(_xlfn._TRO_TRAILING(A:A)),2),\"\")","v":{"$error":"#VALUE!"}}]
["1954-07-01",{"$f":"IF(_xlfn._TRO_TRAILING(A:A)<>\"\",ROUNDUP(_xlfn.RANK.EQ(_xlfn._TRO_TRAILING(A:A),_xlfn._TRO_TRAILING(A:A),0)/COUNTA(_xlfn._TRO_TRAILING(A:A)),2),\"\")","v":{"$error":"#VALUE!"}}]
["1954-07-01",{"$f":"IF(_xlfn._TRO_TRAILING(A:A)<>\"\",ROUNDUP(_xlfn.RANK.EQ(_xlfn._TRO_TRAILING(A:A),_xlfn._TRO_TRAILING(A:A),0)/COUNTA(_xlfn._TRO_TRAILING(A:A)),2),\"\")","v":{"$error":"#VALUE!"}}]
["1954-07-01",{"$f":"IF(_xlfn._TRO_TRAILING(A:A)<>\"\",ROUNDUP(_xlfn.RANK.EQ(_xlfn._TRO_TRAILING(A:A),_xlfn._TRO_TRAILING(A:A),0)/COUNTA(_xlfn._TRO_TRAILING(A:A)),2),\"\")","v":{"$error":"#VALUE!"}}]
["1954-07-01",{"$f":"IF(_xlfn._TRO_TRAILING(A:A)<>\"\",ROUNDUP(_xlfn.RANK.EQ(_xlfn._TRO_TRAILING(A:A),_xlfn._TRO_TRAILING(A:A),0)/COUNTA(_xlfn._TRO_TRAILING(A:A)),2),\"\")","v":{"$error":"#VALUE!"}}]
[null,{"$f":"IF(_xlfn._TRO_TRAILING(A:A)<>\"\",ROUNDUP(_xlfn.RANK.EQ(_xlfn._TRO_TRAILING(A:A),_xlfn._TRO_TRAILING(A:A),0)/COUNTA(_xlfn._TRO_TRAILING(A:A)),2),\"\")","v":{"$error":"#VALUE!"}}]
[null,{"$f":"IF(_xlfn._TRO_TRAILING(A:A)<>\"\",ROUNDUP(_xlfn.RANK.EQ(_xlfn._TRO_TRAILING(A:A),_xlfn._TRO_TRAILING(A:A),0)/COUNTA(_xlfn._TRO_TRAILING(A:A)),2),\"\")","v":{"$error":"#VALUE!"}}]
["1995-08-06",{"$f":"IF(_xlfn._TRO_TRAILING(A:A)<>\"\",ROUNDUP(_xlfn.RANK.EQ(_xlfn._TRO_TRAILING(A:A),_xlfn._TRO_TRAILING(A:A),0)/COUNTA(_xlfn._TRO_TRAILING(A:A)),2),\"\")","v":{"$error":"#VALUE!"}}]
["1978-12-23",{"$f":"IF(_xlfn._TRO_TRAILING(A:A)<>\"\",ROUNDUP(_xlfn.RANK.EQ(_xlfn._TRO_TRAILING(A:A),_xlfn._TRO_TRAILING(A:A),0)/COUNTA(_xlfn._TRO_TRAILING(A:A)),2),\"\")","v":{"$error":"#VALUE!"}}]
[null,{"$f":"IF(_xlfn._TRO_TRAILING(A:A)<>\"\",ROUNDUP(_xlfn.RANK.EQ(_xlfn._TRO_TRAILING(A:A),_xlfn._TRO_TRAILING(A:A),0)/COUNTA(_xlfn._TRO_TRAILING(A:A)),2),\"\")","v":{"$error":"#VALUE!"}}]
["1976-12-16",{"$f":"IF(_xlfn._TRO_TRAILING(A:A)<>\"\",ROUNDUP(_xlfn.RANK.EQ(_xlfn._TRO_TRAILING(A:A),_xlfn._TRO_TRAILING(A:A),0)/COUNTA(_xlfn._TRO_TRAILING(A:A)),2),\"\")","v":{"$error":"#VALUE!"}}]
["1976-12-16",{"$f":"IF(_xlfn._TRO_TRAILING(A:A)<>\"\",ROUNDUP(_xlfn.RANK.EQ(_xlfn._TRO_TRAILING(A:A),_xlfn._TRO_TRAILING(A:A),0)/COUNTA(_xlfn._TRO_TRAILING(A:A)),2),\"\")","v":{"$error":"#VALUE!"}}]
[null,{"$f":"IF(_xlfn._TRO_TRAILING(A:A)<>\"\",ROUNDUP(_xlfn.RANK.EQ(_xlfn._TRO_TRAILING(A:A),_xlfn._TRO_TRAILING(A:A),0)/COUNTA(_xlfn._TRO_TRAILING(A:A)),2),\"\")","v":{"$error":"#VALUE!"}}]
["1961-10-21",{"$f":"IF(_xlfn._TRO_TRAILING(A:A)<>\"\",ROUNDUP(_xlfn.RANK.EQ(_xlfn._TRO_TRAILING(A:A),_xlfn._TRO_TRAILING(A:A),0)/COUNTA(_xlfn._TRO_TRAILING(A:A)),2),\"\")","v":{"$error":"#VALUE!"}}]
["1961-10-21",{"$f":"IF(_xlfn._TRO_TRAILING(A:A)<>\"\",ROUNDUP(_xlfn.RANK.EQ(_xlfn._TRO_TRAILING(A:A),_xlfn._TRO_TRAILING(A:A),0)/COUNTA(_xlfn._TRO_TRAILING(A:A)),2),\"\")","v":{"$error":"#VALUE!"}}]
["1971-09-25",{"$f":"IF(_xlfn._TRO_TRAILING(A:A)<>\"\",ROUNDUP(_xlfn.RANK.EQ(_xlfn._TRO_TRAILING(A:A),_xlfn._TRO_TRAILING(A:A),0)/COUNTA(_xlfn._TRO_TRAILING(A:A)),2),\"\")","v":{"$error":"#VALUE!"}}]
["1971-09-25",{"$f":"IF(_xlfn._TRO_TRAILING(A:A)<>\"\",ROUNDUP(_xlfn.RANK.EQ(_xlfn._TRO_TRAILING(A:A),_xlfn._TRO_TRAILING(A:A),0)/COUNTA(_xlfn._TRO_TRAILING(A:A)),2),\"\")","v":{"$error":"#VALUE!"}}]
["1983-04-09",{"$f":"IF(_xlfn._TRO_TRAILING(A:A)<>\"\",ROUNDUP(_xlfn.RANK.EQ(_xlfn._TRO_TRAILING(A:A),_xlfn._TRO_TRAILING(A:A),0)/COUNTA(_xlfn._TRO_TRAILING(A:A)),2),\"\")","v":{"$error":"#VALUE!"}}]
["1987-11-09",{"$f":"IF(_xlfn._TRO_TRAILING(A:A)<>\"\",ROUNDUP(_xlfn.RANK.EQ(_xlfn._TRO_TRAILING(A:A),_xlfn._TRO_TRAILING(A:A),0)/COUNTA(_xlfn._TRO_TRAILING(A:A)),2),\"\")","v":{"$error":"#VALUE!"}}]
["1987-11-09",{"$f":"IF(_xlfn._TRO_TRAILING(A:A)<>\"\",ROUNDUP(_xlfn.RANK.EQ(_xlfn._TRO_TRAILING(A:A),_xlfn._TRO_TRAILING(A:A),0)/COUNTA(_xlfn._TRO_TRAILING(A:A)),2),\"\")","v":{"$error":"#VALUE!"}}]
["1987-11-09",{"$f":"IF(_xlfn._TRO_TRAILING(A:A)<>\"\",ROUNDUP(_xlfn.RANK.EQ(_xlfn._TRO_TRAILING(A:A),_xlfn._TRO_TRAILING(A:A),0)/COUNTA(_xlfn._TRO_TRAILING(A:A)),2),\"\")","v":{"$error":"#VALUE!"}}]
[null,{"$f":"IF(_xlfn._TRO_TRAILING(A:A)<>\"\",ROUNDUP(_xlfn.RANK.EQ(_xlfn._TRO_TRAILING(A:A),_xlfn._TRO_TRAILING(A:A),0)/COUNTA(_xlfn._TRO_TRAILING(A:A)),2),\"\")","v":{"$error":"#VALUE!"}}]
[null,{"$f":"IF(_xlfn._TRO_TRAILING(A:A)<>\"\",ROUNDUP(_xlfn.RANK.EQ(_xlfn._TRO_TRAILING(A:A),_xlfn._TRO_TRAILING(A:A),0)/COUNTA(_xlfn._TRO_TRAILING(A:A)),2),\"\")","v":{"$error":"#VALUE!"}}]
["1983-08-31",{"$f":"IF(_xlfn._TRO_TRAILING(A:A)<>\"\",ROUNDUP(_xlfn.RANK.EQ(_xlfn._TRO_TRAILING(A:A),_xlfn._TRO_TRAILING(A:A),0)/COUNTA(_xlfn._TRO_TRAILING(A:A)),2),\"\")","v":{"$error":"#VALUE!"}}]
[null,{"$f":"IF(_xlfn._TRO_TRAILING(A:A)<>\"\",ROUNDUP(_xlfn.RANK.EQ(_xlfn._TRO_TRAILING(A:A),_xlfn._TRO_TRAILING(A:A),0)/COUNTA(_xlfn._TRO_TRAILING(A:A)),2),\"\")","v":{"$error":"#VALUE!"}}]
[null,{"$f":"IF(_xlfn._TRO_TRAILING(A:A)<>\"\",ROUNDUP(_xlfn.RANK.EQ(_xlfn._TRO_TRAILING(A:A),_xlfn._TRO_TRAILING(A:A),0)/COUNTA(_xlfn._TRO_TRAILING(A:A)),2),\"\")","v":{"$error":"#VALUE!"}}]
["1959-05-16",{"$f":"IF(_xlfn._TRO_TRAILING(A:A)<>\"\",ROUNDUP(_xlfn.RANK.EQ(_xlfn._TRO_TRAILING(A:A),_xlfn._TRO_TRAILING(A:A),0)/COUNTA(_xlfn._TRO_TRAILING(A:A)),2),\"\")","v":{"$error":"#VALUE!"}}]
["1982-11-27",{"$f":"IF(_xlfn._TRO_TRAILING(A:A)<>\"\",ROUNDUP(_xlfn.RANK.EQ(_xlfn._TRO_TRAILING(A:A),_xlfn._TRO_TRAILING(A:A),0)/COUNTA(_xlfn._TRO_TRAILING(A:A)),2),\"\")","v":{"$error":"#VALUE!"}}]
["1986-04-10",{"$f":"IF(_xlfn._TRO_TRAILING(A:A)<>\"\",ROUNDUP(_xlfn.RANK.EQ(_xlfn._TRO_TRAILING(A:A),_xlfn._TRO_TRAILING(A:A),0)/COUNTA(_xlfn._TRO_TRAILING(A:A)),2),\"\")","v":{"$error":"#VALUE!"}}]
[null,{"$f":"IF(_xlfn._TRO_TRAILING(A:A)<>\"\",ROUNDUP(_xlfn.RANK.EQ(_xlfn._TRO_TRAILING(A:A),_xlfn._TRO_TRAILING(A:A),0)/COUNTA(_xlfn._TRO_TRAILING(A:A)),2),\"\")","v":{"$error":"#VALUE!"}}]
[null,{"$f":"IF(_xlfn._TRO_TRAILING(A:A)<>\"\",ROUNDUP(_xlfn.RANK.EQ(_xlfn._TRO_TRAILING(A:A),_xlfn._TRO_TRAILING(A:A),0)/COUNTA(_xlfn._TRO_TRAILING(A:A)),2),\"\")","v":{"$error":"#VALUE!"}}]
[null,{"$f":"IF(_xlfn._TRO_TRAILING(A:A)<>\"\",ROUNDUP(_xlfn.RANK.EQ(_xlfn._TRO_TRAILING(A:A),_xlfn._TRO_TRAILING(A:A),0)/COUNTA(_xlfn._TRO_TRAILING(A:A)),2),\"\")","v":{"$error":"#VALUE!"}}]
[null,{"$f":"IF(_xlfn._TRO_TRAILING(A:A)<>\"\",ROUNDUP(_xlfn.RANK.EQ(_xlfn._TRO_TRAILING(A:A),_xlfn._TRO_TRAILING(A:A),0)/COUNTA(_xlfn._TRO_TRAILING(A:A)),2),\"\")","v":{"$error":"#VALUE!"}}]
["1994-08-22",{"$f":"IF(_xlfn._TRO_TRAILING(A:A)<>\"\",ROUNDUP(_xlfn.RANK.EQ(_xlfn._TRO_TRAILING(A:A),_xlfn._TRO_TRAILING(A:A),0)/COUNTA(_xlfn._TRO_TRAILING(A:A)),2),\"\")","v":{"$error":"#VALUE!"}}]
["1994-08-22",{"$f":"IF(_xlfn._TRO_TRAILING(A:A)<>\"\",ROUNDUP(_xlfn.RANK.EQ(_xlfn._TRO_TRAILING(A:A),_xlfn._TRO_TRAILING(A:A),0)/COUNTA(_xlfn._TRO_TRAILING(A:A)),2),\"\")","v":{"$error":"#VALUE!"}}]
[null,{"$f":"IF(_xlfn._TRO_TRAILING(A:A)<>\"\",ROUNDUP(_xlfn.RANK.EQ(_xlfn._TRO_TRAILING(A:A),_xlfn._TRO_TRAILING(A:A),0)/COUNTA(_xlfn._TRO_TRAILING(A:A)),2),\"\")","v":{"$error":"#VALUE!"}}]
["1978-10-07",{"$f":"IF(_xlfn._TRO_TRAILING(A:A)<>\"\",ROUNDUP(_xlfn.RANK.EQ(_xlfn._TRO_TRAILING(A:A),_xlfn._TRO_TRAILING(A:A),0)/COUNTA(_xlfn._TRO_TRAILING(A:A)),2),\"\")","v":{"$error":"#VALUE!"}}]
["1994-09-20",{"$f":"IF(_xlfn._TRO_TRAILING(A:A)<>\"\",ROUNDUP(_xlfn.RANK.EQ(_xlfn._TRO_TRAILING(A:A),_xlfn._TRO_TRAILING(A:A),0)/COUNTA(_xlfn._TRO_TRAILING(A:A)),2),\"\")","v":{"$error":"#VALUE!"}}]
["1994-09-20",{"$f":"IF(_xlfn._TRO_TRAILING(A:A)<>\"\",ROUNDUP(_xlfn.RANK.EQ(_xlfn._TRO_TRAILING(A:A),_xlfn._TRO_TRAILING(A:A),0)/COUNTA(_xlfn._TRO_TRAILING(A:A)),2),\"\")","v":{"$error":"#VALUE!"}}]
["1994-09-20",{"$f":"IF(_xlfn._TRO_TRAILING(A:A)<>\"\",ROUNDUP(_xlfn.RANK.EQ(_xlfn._TRO_TRAILING(A:A),_xlfn._TRO_TRAILING(A:A),0)/COUNTA(_xlfn._TRO_TRAILING(A:A)),2),\"\")","v":{"$error":"#VALUE!"}}]
["1994-09-20",{"$f":"IF(_xlfn._TRO_TRAILING(A:A)<>\"\",ROUNDUP(_xlfn.RANK.EQ(_xlfn._TRO_TRAILING(A:A),_xlfn._TRO_TRAILING(A:A),0)/COUNTA(_xlfn._TRO_TRAILING(A:A)),2),\"\")","v":{"$error":"#VALUE!"}}]
[null,{"$f":"IF(_xlfn._TRO_TRAILING(A:A)<>\"\",ROUNDUP(_xlfn.RANK.EQ(_xlfn._TRO_TRAILING(A:A),_xlfn._TRO_TRAILING(A:A),0)/COUNTA(_xlfn._TRO_TRAILING(A:A)),2),\"\")","v":{"$error":"#VALUE!"}}]
[null,{"$f":"IF(_xlfn._TRO_TRAILING(A:A)<>\"\",ROUNDUP(_xlfn.RANK.EQ(_xlfn._TRO_TRAILING(A:A),_xlfn._TRO_TRAILING(A:A),0)/COUNTA(_xlfn._TRO_TRAILING(A:A)),2),\"\")","v":{"$error":"#VALUE!"}}]
["1983-11-02",{"$f":"IF(_xlfn._TRO_TRAILING(A:A)<>\"\",ROUNDUP(_xlfn.RANK.EQ(_xlfn._TRO_TRAILING(A:A),_xlfn._TRO_TRAILING(A:A),0)/COUNTA(_xlfn._TRO_TRAILING(A:A)),2),\"\")","v":{"$error":"#VALUE!"}}]
["1965-05-17",{"$f":"IF(_xlfn._TRO_TRAILING(A:A)<>\"\",ROUNDUP(_xlfn.RANK.EQ(_xlfn._TRO_TRAILING(A:A),_xlfn._TRO_TRAILING(A:A),0)/COUNTA(_xlfn._TRO_TRAILING(A:A)),2),\"\")","v":{"$error":"#VALUE!"}}]
["1965-05-17",{"$f":"IF(_xlfn._TRO_TRAILING(A:A)<>\"\",ROUNDUP(_xlfn.RANK.EQ(_xlfn._TRO_TRAILING(A:A),_xlfn._TRO_TRAILING(A:A),0)/COUNTA(_xlfn._TRO_TRAILING(A:A)),2),\"\")","v":{"$error":"#VALUE!"}}]
[null,{"$f":"IF(_xlfn._TRO_TRAILING(A:A)<>\"\",ROUNDUP(_xlfn.RANK.EQ(_xlfn._TRO_TRAILING(A:A),_xlfn._TRO_TRAILING(A:A),0)/COUNTA(_xlfn._TRO_TRAILING(A:A)),2),\"\")","v":{"$error":"#VALUE!"}}]
["1981-05-03",{"$f":"IF(_xlfn._TRO_TRAILING(A:A)<>\"\",ROUNDUP(_xlfn.RANK.EQ(_xlfn._TRO_TRAILING(A:A),_xlfn._TRO_TRAILING(A:A),0)/COUNTA(_xlfn._TRO_TRAILING(A:A)),2),\"\")","v":{"$error":"#VALUE!"}}]
["1992-05-01",{"$f":"IF(_xlfn._TRO_TRAILING(A:A)<>\"\",ROUNDUP(_xlfn.RANK.EQ(_xlfn._TRO_TRAILING(A:A),_xlfn._TRO_TRAILING(A:A),0)/COUNTA(_xlfn._TRO_TRAILING(A:A)),2),\"\")","v":{"$error":"#VALUE!"}}]
["1959-04-14",{"$f":"IF(_xlfn._TRO_TRAILING(A:A)<>\"\",ROUNDUP(_xlfn.RANK.EQ(_xlfn._TRO_TRAILING(A:A),_xlfn._TRO_TRAILING(A:A),0)/COUNTA(_xlfn._TRO_TRAILING(A:A)),2),\"\")","v":{"$error":"#VALUE!"}}]
["1976-04-14",{"$f":"IF(_xlfn._TRO_TRAILING(A:A)<>\"\",ROUNDUP(_xlfn.RANK.EQ(_xlfn._TRO_TRAILING(A:A),_xlfn._TRO_TRAILING(A:A),0)/COUNTA(_xlfn._TRO_TRAILING(A:A)),2),\"\")","v":{"$error":"#VALUE!"}}]
[null,{"$f":"IF(_xlfn._TRO_TRAILING(A:A)<>\"\",ROUNDUP(_xlfn.RANK.EQ(_xlfn._TRO_TRAILING(A:A),_xlfn._TRO_TRAILING(A:A),0)/COUNTA(_xlfn._TRO_TRAILING(A:A)),2),\"\")","v":{"$error":"#VALUE!"}}]
["1955-06-14",{"$f":"IF(_xlfn._TRO_TRAILING(A:A)<>\"\",ROUNDUP(_xlfn.RANK.EQ(_xlfn._TRO_TRAILING(A:A),_xlfn._TRO_TRAILING(A:A),0)/COUNTA(_xlfn._TRO_TRAILING(A:A)),2),\"\")","v":{"$error":"#VALUE!"}}]
["1963-01-12",{"$f":"IF(_xlfn._TRO_TRAILING(A:A)<>\"\",ROUNDUP(_xlfn.RANK.EQ(_xlfn._TRO_TRAILING(A:A),_xlfn._TRO_TRAILING(A:A),0)/COUNTA(_xlfn._TRO_TRAILING(A:A)),2),\"\")","v":{"$error":"#VALUE!"}}]
["1963-01-12",{"$f":"IF(_xlfn._TRO_TRAILING(A:A)<>\"\",ROUNDUP(_xlfn.RANK.EQ(_xlfn._TRO_TRAILING(A:A),_xlfn._TRO_TRAILING(A:A),0)/COUNTA(_xlfn._TRO_TRAILING(A:A)),2),\"\")","v":{"$error":"#VALUE!"}}]
["1963-01-12",{"$f":"IF(_xlfn._TRO_TRAILING(A:A)<>\"\",ROUNDUP(_xlfn.RANK.EQ(_xlfn._TRO_TRAILING(A:A),_xlfn._TRO_TRAILING(A:A),0)/COUNTA(_xlfn._TRO_TRAILING(A:A)),2),\"\")","v":{"$error":"#VALUE!"}}]
["1963-01-12",{"$f":"IF(_xlfn._TRO_TRAILING(A:A)<>\"\",ROUNDUP(_xlfn.RANK.EQ(_xlfn._TRO_TRAILING(A:A),_xlfn._TRO_TRAILING(A:A),0)/COUNTA(_xlfn._TRO_TRAILING(A:A)),2),\"\")","v":{"$error":"#VALUE!"}}]
["1963-01-12",{"$f":"IF(_xlfn._TRO_TRAILING(A:A)<>\"\",ROUNDUP(_xlfn.RANK.EQ(_xlfn._TRO_TRAILING(A:A),_xlfn._TRO_TRAILING(A:A),0)/COUNTA(_xlfn._TRO_TRAILING(A:A)),2),\"\")","v":{"$error":"#VALUE!"}}]
["1963-01-12",{"$f":"IF(_xlfn._TRO_TRAILING(A:A)<>\"\",ROUNDUP(_xlfn.RANK.EQ(_xlfn._TRO_TRAILING(A:A),_xlfn._TRO_TRAILING(A:A),0)/COUNTA(_xlfn._TRO_TRAILING(A:A)),2),\"\")","v":{"$error":"#VALUE!"}}]
[null,{"$f":"IF(_xlfn._TRO_TRAILING(A:A)<>\"\",ROUNDUP(_xlfn.RANK.EQ(_xlfn._TRO_TRAILING(A:A),_xlfn._TRO_TRAILING(A:A),0)/COUNTA(_xlfn._TRO_TRAILING(A:A)),2),\"\")","v":{"$error":"#VALUE!"}}]
["1992-12-16",{"$f":"IF(_xlfn._TRO_TRAILING(A:A)<>\"\",ROUNDUP(_xlfn.RANK.EQ(_xlfn._TRO_TRAILING(A:A),_xlfn._TRO_TRAILING(A:A),0)/COUNTA(_xlfn._TRO_TRAILING(A:A)),2),\"\")","v":{"$error":"#VALUE!"}}]
["1992-12-16",{"$f":"IF(_xlfn._TRO_TRAILING(A:A)<>\"\",ROUNDUP(_xlfn.RANK.EQ(_xlfn._TRO_TRAILING(A:A),_xlfn._TRO_TRAILING(A:A),0)/COUNTA(_xlfn._TRO_TRAILING(A:A)),2),\"\")","v":{"$error":"#VALUE!"}}]
["1978-12-15",{"$f":"IF(_xlfn._TRO_TRAILING(A:A)<>\"\",ROUNDUP(_xlfn.RANK.EQ(_xlfn._TRO_TRAILING(A:A),_xlfn._TRO_TRAILING(A:A),0)/COUNTA(_xlfn._TRO_TRAILING(A:A)),2),\"\")","v":{"$error":"#VALUE!"}}]
[null,{"$f":"IF(_xlfn._TRO_TRAILING(A:A)<>\"\",ROUNDUP(_xlfn.RANK.EQ(_xlfn._TRO_TRAILING(A:A),_xlfn._TRO_TRAILING(A:A),0)/COUNTA(_xlfn._TRO_TRAILING(A:A)),2),\"\")","v":{"$error":"#VALUE!"}}]
[null,{"$f":"IF(_xlfn._TRO_TRAILING(A:A)<>\"\",ROUNDUP(_xlfn.RANK.EQ(_xlfn._TRO_TRAILING(A:A),_xlfn._TRO_TRAILING(A:A),0)/COUNTA(_xlfn._TRO_TRAILING(A:A)),2),\"\")","v":{"$error":"#VALUE!"}}]
[null,{"$f":"IF(_xlfn._TRO_TRAILING(A:A)<>\"\",ROUNDUP(_xlfn.RANK.EQ(_xlfn._TRO_TRAILING(A:A),_xlfn._TRO_TRAILING(A:A),0)/COUNTA(_xlfn._TRO_TRAILING(A:A)),2),\"\")","v":{"$error":"#VALUE!"}}]
["1981-05-29",{"$f":"IF(_xlfn._TRO_TRAILING(A:A)<>\"\",ROUNDUP(_xlfn.RANK.EQ(_xlfn._TRO_TRAILING(A:A),_xlfn._TRO_TRAILING(A:A),0)/COUNTA(_xlfn._TRO_TRAILING(A:A)),2),\"\")","v":{"$error":"#VALUE!"}}]
["1971-10-31",{"$f":"IF(_xlfn._TRO_TRAILING(A:A)<>\"\",ROUNDUP(_xlfn.RANK.EQ(_xlfn._TRO_TRAILING(A:A),_xlfn._TRO_TRAILING(A:A),0)/COUNTA(_xlfn._TRO_TRAILING(A:A)),2),\"\")","v":{"$error":"#VALUE!"}}]
["1990-02-11",{"$f":"IF(_xlfn._TRO_TRAILING(A:A)<>\"\",ROUNDUP(_xlfn.RANK.EQ(_xlfn._TRO_TRAILING(A:A),_xlfn._TRO_TRAILING(A:A),0)/COUNTA(_xlfn._TRO_TRAILING(A:A)),2),\"\")","v":{"$error":"#VALUE!"}}]
[null,{"$f":"IF(_xlfn._TRO_TRAILING(A:A)<>\"\",ROUNDUP(_xlfn.RANK.EQ(_xlfn._TRO_TRAILING(A:A),_xlfn._TRO_TRAILING(A:A),0)/COUNTA(_xlfn._TRO_TRAILING(A:A)),2),\"\")","v":{"$error":"#VALUE!"}}]
[null,{"$f":"IF(_xlfn._TRO_TRAILING(A:A)<>\"\",ROUNDUP(_xlfn.RANK.EQ(_xlfn._TRO_TRAILING(A:A),_xlfn._TRO_TRAILING(A:A),0)/COUNTA(_xlfn._TRO_TRAILING(A:A)),2),\"\")","v":{"$error":"#VALUE!"}}]
["1990-08-18",{"$f":"IF(_xlfn._TRO_TRAILING(A:A)<>\"\",ROUNDUP(_xlfn.RANK.EQ(_xlfn._TRO_TRAILING(A:A),_xlfn._TRO_TRAILING(A:A),0)/COUNTA(_xlfn._TRO_TRAILING(A:A)),2),\"\")","v":{"$error":"#VALUE!"}}]
[null,{"$f":"IF(_xlfn._TRO_TRAILING(A:A)<>\"\",ROUNDUP(_xlfn.RANK.EQ(_xlfn._TRO_TRAILING(A:A),_xlfn._TRO_TRAILING(A:A),0)/COUNTA(_xlfn._TRO_TRAILING(A:A)),2),\"\")","v":{"$error":"#VALUE!"}}]
["1986-02-26",{"$f":"IF(_xlfn._TRO_TRAILING(A:A)<>\"\",ROUNDUP(_xlfn.RANK.EQ(_xlfn._TRO_TRAILING(A:A),_xlfn._TRO_TRAILING(A:A),0)/COUNTA(_xlfn._TRO_TRAILING(A:A)),2),\"\")","v":{"$error":"#VALUE!"}}]
["1986-02-26",{"$f":"IF(_xlfn._TRO_TRAILING(A:A)<>\"\",ROUNDUP(_xlfn.RANK.EQ(_xlfn._TRO_TRAILING(A:A),_xlfn._TRO_TRAILING(A:A),0)/COUNTA(_xlfn._TRO_TRAILING(A:A)),2),\"\")","v":{"$error":"#VALUE!"}}]
["1986-02-26",{"$f":"IF(_xlfn._TRO_TRAILING(A:A)<>\"\",ROUNDUP(_xlfn.RANK.EQ(_xlfn._TRO_TRAILING(A:A),_xlfn._TRO_TRAILING(A:A),0)/COUNTA(_xlfn._TRO_TRAILING(A:A)),2),\"\")","v":{"$error":"#VALUE!"}}]
["1986-02-26",{"$f":"IF(_xlfn._TRO_TRAILING(A:A)<>\"\",ROUNDUP(_xlfn.RANK.EQ(_xlfn._TRO_TRAILING(A:A),_xlfn._TRO_TRAILING(A:A),0)/COUNTA(_xlfn._TRO_TRAILING(A:A)),2),\"\")","v":{"$error":"#VALUE!"}}]
["1986-02-26",{"$f":"IF(_xlfn._TRO_TRAILING(A:A)<>\"\",ROUNDUP(_xlfn.RANK.EQ(_xlfn._TRO_TRAILING(A:A),_xlfn._TRO_TRAILING(A:A),0)/COUNTA(_xlfn._TRO_TRAILING(A:A)),2),\"\")","v":{"$error":"#VALUE!"}}]
["1986-02-26",{"$f":"IF(_xlfn._TRO_TRAILING(A:A)<>\"\",ROUNDUP(_xlfn.RANK.EQ(_xlfn._TRO_TRAILING(A:A),_xlfn._TRO_TRAILING(A:A),0)/COUNTA(_xlfn._TRO_TRAILING(A:A)),2),\"\")","v":{"$error":"#VALUE!"}}]
["1986-02-26",{"$f":"IF(_xlfn._TRO_TRAILING(A:A)<>\"\",ROUNDUP(_xlfn.RANK.EQ(_xlfn._TRO_TRAILING(A:A),_xlfn._TRO_TRAILING(A:A),0)/COUNTA(_xlfn._TRO_TRAILING(A:A)),2),\"\")","v":{"$error":"#VALUE!"}}]
["1986-02-26",{"$f":"IF(_xlfn._TRO_TRAILING(A:A)<>\"\",ROUNDUP(_xlfn.RANK.EQ(_xlfn._TRO_TRAILING(A:A),_xlfn._TRO_TRAILING(A:A),0)/COUNTA(_xlfn._TRO_TRAILING(A:A)),2),\"\")","v":{"$error":"#VALUE!"}}]
["1986-02-26",{"$f":"IF(_xlfn._TRO_TRAILING(A:A)<>\"\",ROUNDUP(_xlfn.RANK.EQ(_xlfn._TRO_TRAILING(A:A),_xlfn._TRO_TRAILING(A:A),0)/COUNTA(_xlfn._TRO_TRAILING(A:A)),2),\"\")","v":{"$error":"#VALUE!"}}]
["1986-02-26",{"$f":"IF(_xlfn._TRO_TRAILING(A:A)<>\"\",ROUNDUP(_xlfn.RANK.EQ(_xlfn._TRO_TRAILING(A:A),_xlfn._TRO_TRAILING(A:A),0)/COUNTA(_xlfn._TRO_TRAILING(A:A)),2),\"\")","v":{"$error":"#VALUE!"}}]
["1986-02-26",{"$f":"IF(_xlfn._TRO_TRAILING(A:A)<>\"\",ROUNDUP(_xlfn.RANK.EQ(_xlfn._TRO_TRAILING(A:A),_xlfn._TRO_TRAILING(A:A),0)/COUNTA(_xlfn._TRO_TRAILING(A:A)),2),\"\")","v":{"$error":"#VALUE!"}}]
["1986-02-26",{"$f":"IF(_xlfn._TRO_TRAILING(A:A)<>\"\",ROUNDUP(_xlfn.RANK.EQ(_xlfn._TRO_TRAILING(A:A),_xlfn._TRO_TRAILING(A:A),0)/COUNTA(_xlfn._TRO_TRAILING(A:A)),2),\"\")","v":{"$error":"#VALUE!"}}]
["1986-02-26",{"$f":"IF(_xlfn._TRO_TRAILING(A:A)<>\"\",ROUNDUP(_xlfn.RANK.EQ(_xlfn._TRO_TRAILING(A:A),_xlfn._TRO_TRAILING(A:A),0)/COUNTA(_xlfn._TRO_TRAILING(A:A)),2),\"\")","v":{"$error":"#VALUE!"}}]
["1986-02-26",{"$f":"IF(_xlfn._TRO_TRAILING(A:A)<>\"\",ROUNDUP(_xlfn.RANK.EQ(_xlfn._TRO_TRAILING(A:A),_xlfn._TRO_TRAILING(A:A),0)/COUNTA(_xlfn._TRO_TRAILING(A:A)),2),\"\")","v":{"$error":"#VALUE!"}}]
["1986-02-26",{"$f":"IF(_xlfn._TRO_TRAILING(A:A)<>\"\",ROUNDUP(_xlfn.RANK.EQ(_xlfn._TRO_TRAILING(A:A),_xlfn._TRO_TRAILING(A:A),0)/COUNTA(_xlfn._TRO_TRAILING(A:A)),2),\"\")","v":{"$error":"#VALUE!"}}]
["1986-02-26",{"$f":"IF(_xlfn._TRO_TRAILING(A:A)<>\"\",ROUNDUP(_xlfn.RANK.EQ(_xlfn._TRO_TRAILING(A:A),_xlfn._TRO_TRAILING(A:A),0)/COUNTA(_xlfn._TRO_TRAILING(A:A)),2),\"\")","v":{"$error":"#VALUE!"}}]
[null,{"$f":"IF(_xlfn._TRO_TRAILING(A:A)<>\"\",ROUNDUP(_xlfn.RANK.EQ(_xlfn._TRO_TRAILING(A:A),_xlfn._TRO_TRAILING(A:A),0)/COUNTA(_xlfn._TRO_TRAILING(A:A)),2),\"\")","v":{"$error":"#VALUE!"}}]
[null,{"$f":"IF(_xlfn._TRO_TRAILING(A:A)<>\"\",ROUNDUP(_xlfn.RANK.EQ(_xlfn._TRO_TRAILING(A:A),_xlfn._TRO_TRAILING(A:A),0)/COUNTA(_xlfn._TRO_TRAILING(A:A)),2),\"\")","v":{"$error":"#VALUE!"}}]
["1985-11-18",{"$f":"IF(_xlfn._TRO_TRAILING(A:A)<>\"\",ROUNDUP(_xlfn.RANK.EQ(_xlfn._TRO_TRAILING(A:A),_xlfn._TRO_TRAILING(A:A),0)/COUNTA(_xlfn._TRO_TRAILING(A:A)),2),\"\")","v":{"$error":"#VALUE!"}}]
[null,{"$f":"IF(_xlfn._TRO_TRAILING(A:A)<>\"\",ROUNDUP(_xlfn.RANK.EQ(_xlfn._TRO_TRAILING(A:A),_xlfn._TRO_TRAILING(A:A),0)/COUNTA(_xlfn._TRO_TRAILING(A:A)),2),\"\")","v":{"$error":"#VALUE!"}}]
[null,{"$f":"IF(_xlfn._TRO_TRAILING(A:A)<>\"\",ROUNDUP(_xlfn.RANK.EQ(_xlfn._TRO_TRAILING(A:A),_xlfn._TRO_TRAILING(A:A),0)/COUNTA(_xlfn._TRO_TRAILING(A:A)),2),\"\")","v":{"$error":"#VALUE!"}}]
[null,{"$f":"IF(_xlfn._TRO_TRAILING(A:A)<>\"\",ROUNDUP(_xlfn.RANK.EQ(_xlfn._TRO_TRAILING(A:A),_xlfn._TRO_TRAILING(A:A),0)/COUNTA(_xlfn._TRO_TRAILING(A:A)),2),\"\")","v":{"$error":"#VALUE!"}}]
[null,{"$f":"IF(_xlfn._TRO_TRAILING(A:A)<>\"\",ROUNDUP(_xlfn.RANK.EQ(_xlfn._TRO_TRAILING(A:A),_xlfn._TRO_TRAILING(A:A),0)/COUNTA(_xlfn._TRO_TRAILING(A:A)),2),\"\")","v":{"$error":"#VALUE!"}}]
[null,{"$f":"IF(_xlfn._TRO_TRAILING(A:A)<>\"\",ROUNDUP(_xlfn.RANK.EQ(_xlfn._TRO_TRAILING(A:A),_xlfn._TRO_TRAILING(A:A),0)/COUNTA(_xlfn._TRO_TRAILING(A:A)),2),\"\")","v":{"$error":"#VALUE!"}}]
[null,{"$f":"IF(_xlfn._TRO_TRAILING(A:A)<>\"\",ROUNDUP(_xlfn.RANK.EQ(_xlfn._TRO_TRAILING(A:A),_xlfn._TRO_TRAILING(A:A),0)/COUNTA(_xlfn._TRO_TRAILING(A:A)),2),\"\")","v":{"$error":"#VALUE!"}}]
["1981-04-26",{"$f":"IF(_xlfn._TRO_TRAILING(A:A)<>\"\",ROUNDUP(_xlfn.RANK.EQ(_xlfn._TRO_TRAILING(A:A),_xlfn._TRO_TRAILING(A:A),0)/COUNTA(_xlfn._TRO_TRAILING(A:A)),2),\"\")","v":{"$error":"#VALUE!"}}]
["1981-04-26",{"$f":"IF(_xlfn._TRO_TRAILING(A:A)<>\"\",ROUNDUP(_xlfn.RANK.EQ(_xlfn._TRO_TRAILING(A:A),_xlfn._TRO_TRAILING(A:A),0)/COUNTA(_xlfn._TRO_TRAILING(A:A)),2),\"\")","v":{"$error":"#VALUE!"}}]
["1981-04-26",{"$f":"IF(_xlfn._TRO_TRAILING(A:A)<>\"\",ROUNDUP(_xlfn.RANK.EQ(_xlfn._TRO_TRAILING(A:A),_xlfn._TRO_TRAILING(A:A),0)/COUNTA(_xlfn._TRO_TRAILING(A:A)),2),\"\")","v":{"$error":"#VALUE!"}}]
["1981-04-26",{"$f":"IF(_xlfn._TRO_TRAILING(A:A)<>\"\",ROUNDUP(_xlfn.RANK.EQ(_xlfn._TRO_TRAILING(A:A),_xlfn._TRO_TRAILING(A:A),0)/COUNTA(_xlfn._TRO_TRAILING(A:A)),2),\"\")","v":{"$error":"#VALUE!"}}]
["1981-04-26",{"$f":"IF(_xlfn._TRO_TRAILING(A:A)<>\"\",ROUNDUP(_xlfn.RANK.EQ(_xlfn._TRO_TRAILING(A:A),_xlfn._TRO_TRAILING(A:A),0)/COUNTA(_xlfn._TRO_TRAILING(A:A)),2),\"\")","v":{"$error":"#VALUE!"}}]
["1962-09-03",{"$f":"IF(_xlfn._TRO_TRAILING(A:A)<>\"\",ROUNDUP(_xlfn.RANK.EQ(_xlfn._TRO_TRAILING(A:A),_xlfn._TRO_TRAILING(A:A),0)/COUNTA(_xlfn._TRO_TRAILING(A:A)),2),\"\")","v":{"$error":"#VALUE!"}}]
[null,{"$f":"IF(_xlfn._TRO_TRAILING(A:A)<>\"\",ROUNDUP(_xlfn.RANK.EQ(_xlfn._TRO_TRAILING(A:A),_xlfn._TRO_TRAILING(A:A),0)/COUNTA(_xlfn._TRO_TRAILING(A:A)),2),\"\")","v":{"$error":"#VALUE!"}}]
[null,{"$f":"IF(_xlfn._TRO_TRAILING(A:A)<>\"\",ROUNDUP(_xlfn.RANK.EQ(_xlfn._TRO_TRAILING(A:A),_xlfn._TRO_TRAILING(A:A),0)/COUNTA(_xlfn._TRO_TRAILING(A:A)),2),\"\")","v":{"$error":"#VALUE!"}}]
["1991-06-07",{"$f":"IF(_xlfn._TRO_TRAILING(A:A)<>\"\",ROUNDUP(_xlfn.RANK.EQ(_xlfn._TRO_TRAILING(A:A),_xlfn._TRO_TRAILING(A:A),0)/COUNTA(_xlfn._TRO_TRAILING(A:A)),2),\"\")","v":{"$error":"#VALUE!"}}]
[null,{"$f":"IF(_xlfn._TRO_TRAILING(A:A)<>\"\",ROUNDUP(_xlfn.RANK.EQ(_xlfn._TRO_TRAILING(A:A),_xlfn._TRO_TRAILING(A:A),0)/COUNTA(_xlfn._TRO_TRAILING(A:A)),2),\"\")","v":{"$error":"#VALUE!"}}]
["1993-03-24",{"$f":"IF(_xlfn._TRO_TRAILING(A:A)<>\"\",ROUNDUP(_xlfn.RANK.EQ(_xlfn._TRO_TRAILING(A:A),_xlfn._TRO_TRAILING(A:A),0)/COUNTA(_xlfn._TRO_TRAILING(A:A)),2),\"\")","v":{"$error":"#VALUE!"}}]
[null,{"$f":"IF(_xlfn._TRO_TRAILING(A:A)<>\"\",ROUNDUP(_xlfn.RANK.EQ(_xlfn._TRO_TRAILING(A:A),_xlfn._TRO_TRAILING(A:A),0)/COUNTA(_xlfn._TRO_TRAILING(A:A)),2),\"\")","v":{"$error":"#VALUE!"}}]
[null,{"$f":"IF(_xlfn._TRO_TRAILING(A:A)<>\"\",ROUNDUP(_xlfn.RANK.EQ(_xlfn._TRO_TRAILING(A:A),_xlfn._TRO_TRAILING(A:A),0)/COUNTA(_xlfn._TRO_TRAILING(A:A)),2),\"\")","v":{"$error":"#VALUE!"}}]
[null,{"$f":"IF(_xlfn._TRO_TRAILING(A:A)<>\"\",ROUNDUP(_xlfn.RANK.EQ(_xlfn._TRO_TRAILING(A:A),_xlfn._TRO_TRAILING(A:A),0)/COUNTA(_xlfn._TRO_TRAILING(A:A)),2),\"\")","v":{"$error":"#VALUE!"}}]
["1982-06-27",{"$f":"IF(_xlfn._TRO_TRAILING(A:A)<>\"\",ROUNDUP(_xlfn.RANK.EQ(_xlfn._TRO_TRAILING(A:A),_xlfn._TRO_TRAILING(A:A),0)/COUNTA(_xlfn._TRO_TRAILING(A:A)),2),\"\")","v":{"$error":"#VALUE!"}}]
["1982-06-27",{"$f":"IF(_xlfn._TRO_TRAILING(A:A)<>\"\",ROUNDUP(_xlfn.RANK.EQ(_xlfn._TRO_TRAILING(A:A),_xlfn._TRO_TRAILING(A:A),0)/COUNTA(_xlfn._TRO_TRAILING(A:A)),2),\"\")","v":{"$error":"#VALUE!"}}]
["1982-06-27",{"$f":"IF(_xlfn._TRO_TRAILING(A:A)<>\"\",ROUNDUP(_xlfn.RANK.EQ(_xlfn._TRO_TRAILING(A:A),_xlfn._TRO_TRAILING(A:A),0)/COUNTA(_xlfn._TRO_TRAILING(A:A)),2),\"\")","v":{"$error":"#VALUE!"}}]
["1982-06-27",{"$f":"IF(_xlfn._TRO_TRAILING(A:A)<>\"\",ROUNDUP(_xlfn.RANK.EQ(_xlfn._TRO_TRAILING(A:A),_xlfn._TRO_TRAILING(A:A),0)/COUNTA(_xlfn._TRO_TRAILING(A:A)),2),\"\")","v":{"$error":"#VALUE!"}}]
["1982-06-27",{"$f":"IF(_xlfn._TRO_TRAILING(A:A)<>\"\",ROUNDUP(_xlfn.RANK.EQ(_xlfn._TRO_TRAILING(A:A),_xlfn._TRO_TRAILING(A:A),0)/COUNTA(_xlfn._TRO_TRAILING(A:A)),2),\"\")","v":{"$error":"#VALUE!"}}]
["1975-06-24",{"$f":"IF(_xlfn._TRO_TRAILING(A:A)<>\"\",ROUNDUP(_xlfn.RANK.EQ(_xlfn._TRO_TRAILING(A:A),_xlfn._TRO_TRAILING(A:A),0)/COUNTA(_xlfn._TRO_TRAILING(A:A)),2),\"\")","v":{"$error":"#VALUE!"}}]
["1955-06-16",{"$f":"IF(_xlfn._TRO_TRAILING(A:A)<>\"\",ROUNDUP(_xlfn.RANK.EQ(_xlfn._TRO_TRAILING(A:A),_xlfn._TRO_TRAILING(A:A),0)/COUNTA(_xlfn._TRO_TRAILING(A:A)),2),\"\")","v":{"$error":"#VALUE!"}}]
["1955-06-16",{"$f":"IF(_xlfn._TRO_TRAILING(A:A)<>\"\",ROUNDUP(_xlfn.RANK.EQ(_xlfn._TRO_TRAILING(A:A),_xlfn._TRO_TRAILING(A:A),0)/COUNTA(_xlfn._TRO_TRAILING(A:A)),2),\"\")","v":{"$error":"#VALUE!"}}]
[null,{"$f":"IF(_xlfn._TRO_TRAILING(A:A)<>\"\",ROUNDUP(_xlfn.RANK.EQ(_xlfn._TRO_TRAILING(A:A),_xlfn._TRO_TRAILING(A:A),0)/COUNTA(_xlfn._TRO_TRAILING(A:A)),2),\"\")","v":{"$error":"#VALUE!"}}]
[null,{"$f":"IF(_xlfn._TRO_TRAILING(A:A)<>\"\",ROUNDUP(_xlfn.RANK.EQ(_xlfn._TRO_TRAILING(A:A),_xlfn._TRO_TRAILING(A:A),0)/COUNTA(_xlfn._TRO_TRAILING(A:A)),2),\"\")","v":{"$error":"#VALUE!"}}]
[null,{"$f":"IF(_xlfn._TRO_TRAILING(A:A)<>\"\",ROUNDUP(_xlfn.RANK.EQ(_xlfn._TRO_TRAILING(A:A),_xlfn._TRO_TRAILING(A:A),0)/COUNTA(_xlfn._TRO_TRAILING(A:A)),2),\"\")","v":{"$error":"#VALUE!"}}]
[null,{"$f":"IF(_xlfn._TRO_TRAILING(A:A)<>\"\",ROUNDUP(_xlfn.RANK.EQ(_xlfn._TRO_TRAILING(A:A),_xlfn._TRO_TRAILING(A:A),0)/COUNTA(_xlfn._TRO_TRAILING(A:A)),2),\"\")","v":{"$error":"#VALUE!"}}]
[null,{"$f":"IF(_xlfn._TRO_TRAILING(A:A)<>\"\",ROUNDUP(_xlfn.RANK.EQ(_xlfn._TRO_TRAILING(A:A),_xlfn._TRO_TRAILING(A:A),0)/COUNTA(_xlfn._TRO_TRAILING(A:A)),2),\"\")","v":{"$error":"#VALUE!"}}]
[null,{"$f":"IF(_xlfn._TRO_TRAILING(A:A)<>\"\",ROUNDUP(_xlfn.RANK.EQ(_xlfn._TRO_TRAILING(A:A),_xlfn._TRO_TRAILING(A:A),0)/COUNTA(_xlfn._TRO_TRAILING(A:A)),2),\"\")","v":{"$error":"#VALUE!"}}]
[null,{"$f":"IF(_xlfn._TRO_TRAILING(A:A)<>\"\",ROUNDUP(_xlfn.RANK.EQ(_xlfn._TRO_TRAILING(A:A),_xlfn._TRO_TRAILING(A:A),0)/COUNTA(_xlfn._TRO_TRAILING(A:A)),2),\"\")","v":{"$error":"#VALUE!"}}]
[null,{"$f":"IF(_xlfn._TRO_TRAILING(A:A)<>\"\",ROUNDUP(_xlfn.RANK.EQ(_xlfn._TRO_TRAILING(A:A),_xlfn._TRO_TRAILING(A:A),0)/COUNTA(_xlfn._TRO_TRAILING(A:A)),2),\"\")","v":{"$error":"#VALUE!"}}]
[null,{"$f":"IF(_xlfn._TRO_TRAILING(A:A)<>\"\",ROUNDUP(_xlfn.RANK.EQ(_xlfn._TRO_TRAILING(A:A),_xlfn._TRO_TRAILING(A:A),0)/COUNTA(_xlfn._TRO_TRAILING(A:A)),2),\"\")","v":{"$error":"#VALUE!"}}]
[null,{"$f":"IF(_xlfn._TRO_TRAILING(A:A)<>\"\",ROUNDUP(_xlfn.RANK.EQ(_xlfn._TRO_TRAILING(A:A),_xlfn._TRO_TRAILING(A:A),0)/COUNTA(_xlfn._TRO_TRAILING(A:A)),2),\"\")","v":{"$error":"#VALUE!"}}]
[null,{"$f":"IF(_xlfn._TRO_TRAILING(A:A)<>\"\",ROUNDUP(_xlfn.RANK.EQ(_xlfn._TRO_TRAILING(A:A),_xlfn._TRO_TRAILING(A:A),0)/COUNTA(_xlfn._TRO_TRAILING(A:A)),2),\"\")","v":{"$error":"#VALUE!"}}]
["1951-07-10",{"$f":"IF(_xlfn._TRO_TRAILING(A:A)<>\"\",ROUNDUP(_xlfn.RANK.EQ(_xlfn._TRO_TRAILING(A:A),_xlfn._TRO_TRAILING(A:A),0)/COUNTA(_xlfn._TRO_TRAILING(A:A)),2),\"\")","v":{"$error":"#VALUE!"}}]
["1951-07-10",{"$f":"IF(_xlfn._TRO_TRAILING(A:A)<>\"\",ROUNDUP(_xlfn.RANK.EQ(_xlfn._TRO_TRAILING(A:A),_xlfn._TRO_TRAILING(A:A),0)/COUNTA(_xlfn._TRO_TRAILING(A:A)),2),\"\")","v":{"$error":"#VALUE!"}}]
["1951-07-10",{"$f":"IF(_xlfn._TRO_TRAILING(A:A)<>\"\",ROUNDUP(_xlfn.RANK.EQ(_xlfn._TRO_TRAILING(A:A),_xlfn._TRO_TRAILING(A:A),0)/COUNTA(_xlfn._TRO_TRAILING(A:A)),2),\"\")","v":{"$error":"#VALUE!"}}]
["1951-07-10",{"$f":"IF(_xlfn._TRO_TRAILING(A:A)<>\"\",ROUNDUP(_xlfn.RANK.EQ(_xlfn._TRO_TRAILING(A:A),_xlfn._TRO_TRAILING(A:A),0)/COUNTA(_xlfn._TRO_TRAILING(A:A)),2),\"\")","v":{"$error":"#VALUE!"}}]
["1951-07-10",{"$f":"IF(_xlfn._TRO_TRAILING(A:A)<>\"\",ROUNDUP(_xlfn.RANK.EQ(_xlfn._TRO_TRAILING(A:A),_xlfn._TRO_TRAILING(A:A),0)/COUNTA(_xlfn._TRO_TRAILING(A:A)),2),\"\")","v":{"$error":"#VALUE!"}}]
["1951-07-10",{"$f":"IF(_xlfn._TRO_TRAILING(A:A)<>\"\",ROUNDUP(_xlfn.RANK.EQ(_xlfn._TRO_TRAILING(A:A),_xlfn._TRO_TRAILING(A:A),0)/COUNTA(_xlfn._TRO_TRAILING(A:A)),2),\"\")","v":{"$error":"#VALUE!"}}]
["1951-07-10",{"$f":"IF(_xlfn._TRO_TRAILING(A:A)<>\"\",ROUNDUP(_xlfn.RANK.EQ(_xlfn._TRO_TRAILING(A:A),_xlfn._TRO_TRAILING(A:A),0)/COUNTA(_xlfn._TRO_TRAILING(A:A)),2),\"\")","v":{"$error":"#VALUE!"}}]
[null,{"$f":"IF(_xlfn._TRO_TRAILING(A:A)<>\"\",ROUNDUP(_xlfn.RANK.EQ(_xlfn._TRO_TRAILING(A:A),_xlfn._TRO_TRAILING(A:A),0)/COUNTA(_xlfn._TRO_TRAILING(A:A)),2),\"\")","v":{"$error":"#VALUE!"}}]
["1981-11-15",{"$f":"IF(_xlfn._TRO_TRAILING(A:A)<>\"\",ROUNDUP(_xlfn.RANK.EQ(_xlfn._TRO_TRAILING(A:A),_xlfn._TRO_TRAILING(A:A),0)/COUNTA(_xlfn._TRO_TRAILING(A:A)),2),\"\")","v":{"$error":"#VALUE!"}}]
["1987-01-11",{"$f":"IF(_xlfn._TRO_TRAILING(A:A)<>\"\",ROUNDUP(_xlfn.RANK.EQ(_xlfn._TRO_TRAILING(A:A),_xlfn._TRO_TRAILING(A:A),0)/COUNTA(_xlfn._TRO_TRAILING(A:A)),2),\"\")","v":{"$error":"#VALUE!"}}]
[null,{"$f":"IF(_xlfn._TRO_TRAILING(A:A)<>\"\",ROUNDUP(_xlfn.RANK.EQ(_xlfn._TRO_TRAILING(A:A),_xlfn._TRO_TRAILING(A:A),0)/COUNTA(_xlfn._TRO_TRAILING(A:A)),2),\"\")","v":{"$error":"#VALUE!"}}]
[null,{"$f":"IF(_xlfn._TRO_TRAILING(A:A)<>\"\",ROUNDUP(_xlfn.RANK.EQ(_xlfn._TRO_TRAILING(A:A),_xlfn._TRO_TRAILING(A:A),0)/COUNTA(_xlfn._TRO_TRAILING(A:A)),2),\"\")","v":{"$error":"#VALUE!"}}]
[null,{"$f":"IF(_xlfn._TRO_TRAILING(A:A)<>\"\",ROUNDUP(_xlfn.RANK.EQ(_xlfn._TRO_TRAILING(A:A),_xlfn._TRO_TRAILING(A:A),0)/COUNTA(_xlfn._TRO_TRAILING(A:A)),2),\"\")","v":{"$error":"#VALUE!"}}]
[null,{"$f":"IF(_xlfn._TRO_TRAILING(A:A)<>\"\",ROUNDUP(_xlfn.RANK.EQ(_xlfn._TRO_TRAILING(A:A),_xlfn._TRO_TRAILING(A:A),0)/COUNTA(_xlfn._TRO_TRAILING(A:A)),2),\"\")","v":{"$error":"#VALUE!"}}]
[null,{"$f":"IF(_xlfn._TRO_TRAILING(A:A)<>\"\",ROUNDUP(_xlfn.RANK.EQ(_xlfn._TRO_TRAILING(A:A),_xlfn._TRO_TRAILING(A:A),0)/COUNTA(_xlfn._TRO_TRAILING(A:A)),2),\"\")","v":{"$error":"#VALUE!"}}]
[null,{"$f":"IF(_xlfn._TRO_TRAILING(A:A)<>\"\",ROUNDUP(_xlfn.RANK.EQ(_xlfn._TRO_TRAILING(A:A),_xlfn._TRO_TRAILING(A:A),0)/COUNTA(_xlfn._TRO_TRAILING(A:A)),2),\"\")","v":{"$error":"#VALUE!"}}]
["1945-06-11",{"$f":"IF(_xlfn._TRO_TRAILING(A:A)<>\"\",ROUNDUP(_xlfn.RANK.EQ(_xlfn._TRO_TRAILING(A:A),_xlfn._TRO_TRAILING(A:A),0)/COUNTA(_xlfn._TRO_TRAILING(A:A)),2),\"\")","v":{"$error":"#VALUE!"}}]
["1945-06-11",{"$f":"IF(_xlfn._TRO_TRAILING(A:A)<>\"\",ROUNDUP(_xlfn.RANK.EQ(_xlfn._TRO_TRAILING(A:A),_xlfn._TRO_TRAILING(A:A),0)/COUNTA(_xlfn._TRO_TRAILING(A:A)),2),\"\")","v":{"$error":"#VALUE!"}}]
["1945-06-11",{"$f":"IF(_xlfn._TRO_TRAILING(A:A)<>\"\",ROUNDUP(_xlfn.RANK.EQ(_xlfn._TRO_TRAILING(A:A),_xlfn._TRO_TRAILING(A:A),0)/COUNTA(_xlfn._TRO_TRAILING(A:A)),2),\"\")","v":{"$error":"#VALUE!"}}]
["1945-06-11",{"$f":"IF(_xlfn._TRO_TRAILING(A:A)<>\"\",ROUNDUP(_xlfn.RANK.EQ(_xlfn._TRO_TRAILING(A:A),_xlfn._TRO_TRAILING(A:A),0)/COUNTA(_xlfn._TRO_TRAILING(A:A)),2),\"\")","v":{"$error":"#VALUE!"}}]
["1945-06-11",{"$f":"IF(_xlfn._TRO_TRAILING(A:A)<>\"\",ROUNDUP(_xlfn.RANK.EQ(_xlfn._TRO_TRAILING(A:A),_xlfn._TRO_TRAILING(A:A),0)/COUNTA(_xlfn._TRO_TRAILING(A:A)),2),\"\")","v":{"$error":"#VALUE!"}}]
["1979-04-06",{"$f":"IF(_xlfn._TRO_TRAILING(A:A)<>\"\",ROUNDUP(_xlfn.RANK.EQ(_xlfn._TRO_TRAILING(A:A),_xlfn._TRO_TRAILING(A:A),0)/COUNTA(_xlfn._TRO_TRAILING(A:A)),2),\"\")","v":{"$error":"#VALUE!"}}]
["1974-09-16",{"$f":"IF(_xlfn._TRO_TRAILING(A:A)<>\"\",ROUNDUP(_xlfn.RANK.EQ(_xlfn._TRO_TRAILING(A:A),_xlfn._TRO_TRAILING(A:A),0)/COUNTA(_xlfn._TRO_TRAILING(A:A)),2),\"\")","v":{"$error":"#VALUE!"}}]
["1974-09-16",{"$f":"IF(_xlfn._TRO_TRAILING(A:A)<>\"\",ROUNDUP(_xlfn.RANK.EQ(_xlfn._TRO_TRAILING(A:A),_xlfn._TRO_TRAILING(A:A),0)/COUNTA(_xlfn._TRO_TRAILING(A:A)),2),\"\")","v":{"$error":"#VALUE!"}}]
[null,{"$f":"IF(_xlfn._TRO_TRAILING(A:A)<>\"\",ROUNDUP(_xlfn.RANK.EQ(_xlfn._TRO_TRAILING(A:A),_xlfn._TRO_TRAILING(A:A),0)/COUNTA(_xlfn._TRO_TRAILING(A:A)),2),\"\")","v":{"$error":"#VALUE!"}}]
[null,{"$f":"IF(_xlfn._TRO_TRAILING(A:A)<>\"\",ROUNDUP(_xlfn.RANK.EQ(_xlfn._TRO_TRAILING(A:A),_xlfn._TRO_TRAILING(A:A),0)/COUNTA(_xlfn._TRO_TRAILING(A:A)),2),\"\")","v":{"$error":"#VALUE!"}}]
[null,{"$f":"IF(_xlfn._TRO_TRAILING(A:A)<>\"\",ROUNDUP(_xlfn.RANK.EQ(_xlfn._TRO_TRAILING(A:A),_xlfn._TRO_TRAILING(A:A),0)/COUNTA(_xlfn._TRO_TRAILING(A:A)),2),\"\")","v":{"$error":"#VALUE!"}}]
[null,{"$f":"IF(_xlfn._TRO_TRAILING(A:A)<>\"\",ROUNDUP(_xlfn.RANK.EQ(_xlfn._TRO_TRAILING(A:A),_xlfn._TRO_TRAILING(A:A),0)/COUNTA(_xlfn._TRO_TRAILING(A:A)),2),\"\")","v":{"$error":"#VALUE!"}}]
[null,{"$f":"IF(_xlfn._TRO_TRAILING(A:A)<>\"\",ROUNDUP(_xlfn.RANK.EQ(_xlfn._TRO_TRAILING(A:A),_xlfn._TRO_TRAILING(A:A),0)/COUNTA(_xlfn._TRO_TRAILING(A:A)),2),\"\")","v":{"$error":"#VALUE!"}}]
[null,{"$f":"IF(_xlfn._TRO_TRAILING(A:A)<>\"\",ROUNDUP(_xlfn.RANK.EQ(_xlfn._TRO_TRAILING(A:A),_xlfn._TRO_TRAILING(A:A),0)/COUNTA(_xlfn._TRO_TRAILING(A:A)),2),\"\")","v":{"$error":"#VALUE!"}}]
[null,{"$f":"IF(_xlfn._TRO_TRAILING(A:A)<>\"\",ROUNDUP(_xlfn.RANK.EQ(_xlfn._TRO_TRAILING(A:A),_xlfn._TRO_TRAILING(A:A),0)/COUNTA(_xlfn._TRO_TRAILING(A:A)),2),\"\")","v":{"$error":"#VALUE!"}}]
["1979-08-16",{"$f":"IF(_xlfn._TRO_TRAILING(A:A)<>\"\",ROUNDUP(_xlfn.RANK.EQ(_xlfn._TRO_TRAILING(A:A),_xlfn._TRO_TRAILING(A:A),0)/COUNTA(_xlfn._TRO_TRAILING(A:A)),2),\"\")","v":{"$error":"#VALUE!"}}]
["1979-08-16",{"$f":"IF(_xlfn._TRO_TRAILING(A:A)<>\"\",ROUNDUP(_xlfn.RANK.EQ(_xlfn._TRO_TRAILING(A:A),_xlfn._TRO_TRAILING(A:A),0)/COUNTA(_xlfn._TRO_TRAILING(A:A)),2),\"\")","v":{"$error":"#VALUE!"}}]
["1979-08-16",{"$f":"IF(_xlfn._TRO_TRAILING(A:A)<>\"\",ROUNDUP(_xlfn.RANK.EQ(_xlfn._TRO_TRAILING(A:A),_xlfn._TRO_TRAILING(A:A),0)/COUNTA(_xlfn._TRO_TRAILING(A:A)),2),\"\")","v":{"$error":"#VALUE!"}}]
["1983-08-24",{"$f":"IF(_xlfn._TRO_TRAILING(A:A)<>\"\",ROUNDUP(_xlfn.RANK.EQ(_xlfn._TRO_TRAILING(A:A),_xlfn._TRO_TRAILING(A:A),0)/COUNTA(_xlfn._TRO_TRAILING(A:A)),2),\"\")","v":{"$error":"#VALUE!"}}]
["1983-08-24",{"$f":"IF(_xlfn._TRO_TRAILING(A:A)<>\"\",ROUNDUP(_xlfn.RANK.EQ(_xlfn._TRO_TRAILING(A:A),_xlfn._TRO_TRAILING(A:A),0)/COUNTA(_xlfn._TRO_TRAILING(A:A)),2),\"\")","v":{"$error":"#VALUE!"}}]
["1983-08-24",{"$f":"IF(_xlfn._TRO_TRAILING(A:A)<>\"\",ROUNDUP(_xlfn.RANK.EQ(_xlfn._TRO_TRAILING(A:A),_xlfn._TRO_TRAILING(A:A),0)/COUNTA(_xlfn._TRO_TRAILING(A:A)),2),\"\")","v":{"$error":"#VALUE!"}}]
["1970-11-25",{"$f":"IF(_xlfn._TRO_TRAILING(A:A)<>\"\",ROUNDUP(_xlfn.RANK.EQ(_xlfn._TRO_TRAILING(A:A),_xlfn._TRO_TRAILING(A:A),0)/COUNTA(_xlfn._TRO_TRAILING(A:A)),2),\"\")","v":{"$error":"#VALUE!"}}]
["1970-11-25",{"$f":"IF(_xlfn._TRO_TRAILING(A:A)<>\"\",ROUNDUP(_xlfn.RANK.EQ(_xlfn._TRO_TRAILING(A:A),_xlfn._TRO_TRAILING(A:A),0)/COUNTA(_xlfn._TRO_TRAILING(A:A)),2),\"\")","v":{"$error":"#VALUE!"}}]
["1970-11-25",{"$f":"IF(_xlfn._TRO_TRAILING(A:A)<>\"\",ROUNDUP(_xlfn.RANK.EQ(_xlfn._TRO_TRAILING(A:A),_xlfn._TRO_TRAILING(A:A),0)/COUNTA(_xlfn._TRO_TRAILING(A:A)),2),\"\")","v":{"$error":"#VALUE!"}}]
["1970-11-25",{"$f":"IF(_xlfn._TRO_TRAILING(A:A)<>\"\",ROUNDUP(_xlfn.RANK.EQ(_xlfn._TRO_TRAILING(A:A),_xlfn._TRO_TRAILING(A:A),0)/COUNTA(_xlfn._TRO_TRAILING(A:A)),2),\"\")","v":{"$error":"#VALUE!"}}]
["1991-09-05",{"$f":"IF(_xlfn._TRO_TRAILING(A:A)<>\"\",ROUNDUP(_xlfn.RANK.EQ(_xlfn._TRO_TRAILING(A:A),_xlfn._TRO_TRAILING(A:A),0)/COUNTA(_xlfn._TRO_TRAILING(A:A)),2),\"\")","v":{"$error":"#VALUE!"}}]
["1991-09-05",{"$f":"IF(_xlfn._TRO_TRAILING(A:A)<>\"\",ROUNDUP(_xlfn.RANK.EQ(_xlfn._TRO_TRAILING(A:A),_xlfn._TRO_TRAILING(A:A),0)/COUNTA(_xlfn._TRO_TRAILING(A:A)),2),\"\")","v":{"$error":"#VALUE!"}}]
["1976-02-28",{"$f":"IF(_xlfn._TRO_TRAILING(A:A)<>\"\",ROUNDUP(_xlfn.RANK.EQ(_xlfn._TRO_TRAILING(A:A),_xlfn._TRO_TRAILING(A:A),0)/COUNTA(_xlfn._TRO_TRAILING(A:A)),2),\"\")","v":{"$error":"#VALUE!"}}]
["1976-02-28",{"$f":"IF(_xlfn._TRO_TRAILING(A:A)<>\"\",ROUNDUP(_xlfn.RANK.EQ(_xlfn._TRO_TRAILING(A:A),_xlfn._TRO_TRAILING(A:A),0)/COUNTA(_xlfn._TRO_TRAILING(A:A)),2),\"\")","v":{"$error":"#VALUE!"}}]
["1976-02-28",{"$f":"IF(_xlfn._TRO_TRAILING(A:A)<>\"\",ROUNDUP(_xlfn.RANK.EQ(_xlfn._TRO_TRAILING(A:A),_xlfn._TRO_TRAILING(A:A),0)/COUNTA(_xlfn._TRO_TRAILING(A:A)),2),\"\")","v":{"$error":"#VALUE!"}}]
["1976-02-28",{"$f":"IF(_xlfn._TRO_TRAILING(A:A)<>\"\",ROUNDUP(_xlfn.RANK.EQ(_xlfn._TRO_TRAILING(A:A),_xlfn._TRO_TRAILING(A:A),0)/COUNTA(_xlfn._TRO_TRAILING(A:A)),2),\"\")","v":{"$error":"#VALUE!"}}]
["1976-02-28",{"$f":"IF(_xlfn._TRO_TRAILING(A:A)<>\"\",ROUNDUP(_xlfn.RANK.EQ(_xlfn._TRO_TRAILING(A:A),_xlfn._TRO_TRAILING(A:A),0)/COUNTA(_xlfn._TRO_TRAILING(A:A)),2),\"\")","v":{"$error":"#VALUE!"}}]
["1976-02-28",{"$f":"IF(_xlfn._TRO_TRAILING(A:A)<>\"\",ROUNDUP(_xlfn.RANK.EQ(_xlfn._TRO_TRAILING(A:A),_xlfn._TRO_TRAILING(A:A),0)/COUNTA(_xlfn._TRO_TRAILING(A:A)),2),\"\")","v":{"$error":"#VALUE!"}}]
["1976-02-28",{"$f":"IF(_xlfn._TRO_TRAILING(A:A)<>\"\",ROUNDUP(_xlfn.RANK.EQ(_xlfn._TRO_TRAILING(A:A),_xlfn._TRO_TRAILING(A:A),0)/COUNTA(_xlfn._TRO_TRAILING(A:A)),2),\"\")","v":{"$error":"#VALUE!"}}]
["1994-02-07",{"$f":"IF(_xlfn._TRO_TRAILING(A:A)<>\"\",ROUNDUP(_xlfn.RANK.EQ(_xlfn._TRO_TRAILING(A:A),_xlfn._TRO_TRAILING(A:A),0)/COUNTA(_xlfn._TRO_TRAILING(A:A)),2),\"\")","v":{"$error":"#VALUE!"}}]
["1987-03-09",{"$f":"IF(_xlfn._TRO_TRAILING(A:A)<>\"\",ROUNDUP(_xlfn.RANK.EQ(_xlfn._TRO_TRAILING(A:A),_xlfn._TRO_TRAILING(A:A),0)/COUNTA(_xlfn._TRO_TRAILING(A:A)),2),\"\")","v":{"$error":"#VALUE!"}}]
["1987-03-09",{"$f":"IF(_xlfn._TRO_TRAILING(A:A)<>\"\",ROUNDUP(_xlfn.RANK.EQ(_xlfn._TRO_TRAILING(A:A),_xlfn._TRO_TRAILING(A:A),0)/COUNTA(_xlfn._TRO_TRAILING(A:A)),2),\"\")","v":{"$error":"#VALUE!"}}]
["1987-03-09",{"$f":"IF(_xlfn._TRO_TRAILING(A:A)<>\"\",ROUNDUP(_xlfn.RANK.EQ(_xlfn._TRO_TRAILING(A:A),_xlfn._TRO_TRAILING(A:A),0)/COUNTA(_xlfn._TRO_TRAILING(A:A)),2),\"\")","v":{"$error":"#VALUE!"}}]
["1992-06-09",{"$f":"IF(_xlfn._TRO_TRAILING(A:A)<>\"\",ROUNDUP(_xlfn.RANK.EQ(_xlfn._TRO_TRAILING(A:A),_xlfn._TRO_TRAILING(A:A),0)/COUNTA(_xlfn._TRO_TRAILING(A:A)),2),\"\")","v":{"$error":"#VALUE!"}}]
["1992-06-09",{"$f":"IF(_xlfn._TRO_TRAILING(A:A)<>\"\",ROUNDUP(_xlfn.RANK.EQ(_xlfn._TRO_TRAILING(A:A),_xlfn._TRO_TRAILING(A:A),0)/COUNTA(_xlfn._TRO_TRAILING(A:A)),2),\"\")","v":{"$error":"#VALUE!"}}]
[null,{"$f":"IF(_xlfn._TRO_TRAILING(A:A)<>\"\",ROUNDUP(_xlfn.RANK.EQ(_xlfn._TRO_TRAILING(A:A),_xlfn._TRO_TRAILING(A:A),0)/COUNTA(_xlfn._TRO_TRAILING(A:A)),2),\"\")","v":{"$error":"#VALUE!"}}]
[null,{"$f":"IF(_xlfn._TRO_TRAILING(A:A)<>\"\",ROUNDUP(_xlfn.RANK.EQ(_xlfn._TRO_TRAILING(A:A),_xlfn._TRO_TRAILING(A:A),0)/COUNTA(_xlfn._TRO_TRAILING(A:A)),2),\"\")","v":{"$error":"#VALUE!"}}]
["1970-05-26",{"$f":"IF(_xlfn._TRO_TRAILING(A:A)<>\"\",ROUNDUP(_xlfn.RANK.EQ(_xlfn._TRO_TRAILING(A:A),_xlfn._TRO_TRAILING(A:A),0)/COUNTA(_xlfn._TRO_TRAILING(A:A)),2),\"\")","v":{"$error":"#VALUE!"}}]
["1970-05-26",{"$f":"IF(_xlfn._TRO_TRAILING(A:A)<>\"\",ROUNDUP(_xlfn.RANK.EQ(_xlfn._TRO_TRAILING(A:A),_xlfn._TRO_TRAILING(A:A),0)/COUNTA(_xlfn._TRO_TRAILING(A:A)),2),\"\")","v":{"$error":"#VALUE!"}}]
[null,{"$f":"IF(_xlfn._TRO_TRAILING(A:A)<>\"\",ROUNDUP(_xlfn.RANK.EQ(_xlfn._TRO_TRAILING(A:A),_xlfn._TRO_TRAILING(A:A),0)/COUNTA(_xlfn._TRO_TRAILING(A:A)),2),\"\")","v":{"$error":"#VALUE!"}}]
[null,{"$f":"IF(_xlfn._TRO_TRAILING(A:A)<>\"\",ROUNDUP(_xlfn.RANK.EQ(_xlfn._TRO_TRAILING(A:A),_xlfn._TRO_TRAILING(A:A),0)/COUNTA(_xlfn._TRO_TRAILING(A:A)),2),\"\")","v":{"$error":"#VALUE!"}}]
[null,{"$f":"IF(_xlfn._TRO_TRAILING(A:A)<>\"\",ROUNDUP(_xlfn.RANK.EQ(_xlfn._TRO_TRAILING(A:A),_xlfn._TRO_TRAILING(A:A),0)/COUNTA(_xlfn._TRO_TRAILING(A:A)),2),\"\")","v":{"$error":"#VALUE!"}}]
[null,{"$f":"IF(_xlfn._TRO_TRAILING(A:A)<>\"\",ROUNDUP(_xlfn.RANK.EQ(_xlfn._TRO_TRAILING(A:A),_xlfn._TRO_TRAILING(A:A),0)/COUNTA(_xlfn._TRO_TRAILING(A:A)),2),\"\")","v":{"$error":"#VALUE!"}}]
[null,{"$f":"IF(_xlfn._TRO_TRAILING(A:A)<>\"\",ROUNDUP(_xlfn.RANK.EQ(_xlfn._TRO_TRAILING(A:A),_xlfn._TRO_TRAILING(A:A),0)/COUNTA(_xlfn._TRO_TRAILING(A:A)),2),\"\")","v":{"$error":"#VALUE!"}}]
[null,{"$f":"IF(_xlfn._TRO_TRAILING(A:A)<>\"\",ROUNDUP(_xlfn.RANK.EQ(_xlfn._TRO_TRAILING(A:A),_xlfn._TRO_TRAILING(A:A),0)/COUNTA(_xlfn._TRO_TRAILING(A:A)),2),\"\")","v":{"$error":"#VALUE!"}}]
[null,{"$f":"IF(_xlfn._TRO_TRAILING(A:A)<>\"\",ROUNDUP(_xlfn.RANK.EQ(_xlfn._TRO_TRAILING(A:A),_xlfn._TRO_TRAILING(A:A),0)/COUNTA(_xlfn._TRO_TRAILING(A:A)),2),\"\")","v":{"$error":"#VALUE!"}}]
["1990-01-30",{"$f":"IF(_xlfn._TRO_TRAILING(A:A)<>\"\",ROUNDUP(_xlfn.RANK.EQ(_xlfn._TRO_TRAILING(A:A),_xlfn._TRO_TRAILING(A:A),0)/COUNTA(_xlfn._TRO_TRAILING(A:A)),2),\"\")","v":{"$error":"#VALUE!"}}]
["1990-01-30",{"$f":"IF(_xlfn._TRO_TRAILING(A:A)<>\"\",ROUNDUP(_xlfn.RANK.EQ(_xlfn._TRO_TRAILING(A:A),_xlfn._TRO_TRAILING(A:A),0)/COUNTA(_xlfn._TRO_TRAILING(A:A)),2),\"\")","v":{"$error":"#VALUE!"}}]
["1990-01-30",{"$f":"IF(_xlfn._TRO_TRAILING(A:A)<>\"\",ROUNDUP(_xlfn.RANK.EQ(_xlfn._TRO_TRAILING(A:A),_xlfn._TRO_TRAILING(A:A),0)/COUNTA(_xlfn._TRO_TRAILING(A:A)),2),\"\")","v":{"$error":"#VALUE!"}}]
["1983-03-18",{"$f":"IF(_xlfn._TRO_TRAILING(A:A)<>\"\",ROUNDUP(_xlfn.RANK.EQ(_xlfn._TRO_TRAILING(A:A),_xlfn._TRO_TRAILING(A:A),0)/COUNTA(_xlfn._TRO_TRAILING(A:A)),2),\"\")","v":{"$error":"#VALUE!"}}]
[null,{"$f":"IF(_xlfn._TRO_TRAILING(A:A)<>\"\",ROUNDUP(_xlfn.RANK.EQ(_xlfn._TRO_TRAILING(A:A),_xlfn._TRO_TRAILING(A:A),0)/COUNTA(_xlfn._TRO_TRAILING(A:A)),2),\"\")","v":{"$error":"#VALUE!"}}]
["1995-09-01",{"$f":"IF(_xlfn._TRO_TRAILING(A:A)<>\"\",ROUNDUP(_xlfn.RANK.EQ(_xlfn._TRO_TRAILING(A:A),_xlfn._TRO_TRAILING(A:A),0)/COUNTA(_xlfn._TRO_TRAILING(A:A)),2),\"\")","v":{"$error":"#VALUE!"}}]
["1977-09-14",{"$f":"IF(_xlfn._TRO_TRAILING(A:A)<>\"\",ROUNDUP(_xlfn.RANK.EQ(_xlfn._TRO_TRAILING(A:A),_xlfn._TRO_TRAILING(A:A),0)/COUNTA(_xlfn._TRO_TRAILING(A:A)),2),\"\")","v":{"$error":"#VALUE!"}}]
[null,{"$f":"IF(_xlfn._TRO_TRAILING(A:A)<>\"\",ROUNDUP(_xlfn.RANK.EQ(_xlfn._TRO_TRAILING(A:A),_xlfn._TRO_TRAILING(A:A),0)/COUNTA(_xlfn._TRO_TRAILING(A:A)),2),\"\")","v":{"$error":"#VALUE!"}}]
["1985-08-03",{"$f":"IF(_xlfn._TRO_TRAILING(A:A)<>\"\",ROUNDUP(_xlfn.RANK.EQ(_xlfn._TRO_TRAILING(A:A),_xlfn._TRO_TRAILING(A:A),0)/COUNTA(_xlfn._TRO_TRAILING(A:A)),2),\"\")","v":{"$error":"#VALUE!"}}]
["1974-08-22",{"$f":"IF(_xlfn._TRO_TRAILING(A:A)<>\"\",ROUNDUP(_xlfn.RANK.EQ(_xlfn._TRO_TRAILING(A:A),_xlfn._TRO_TRAILING(A:A),0)/COUNTA(_xlfn._TRO_TRAILING(A:A)),2),\"\")","v":{"$error":"#VALUE!"}}]
["1974-08-22",{"$f":"IF(_xlfn._TRO_TRAILING(A:A)<>\"\",ROUNDUP(_xlfn.RANK.EQ(_xlfn._TRO_TRAILING(A:A),_xlfn._TRO_TRAILING(A:A),0)/COUNTA(_xlfn._TRO_TRAILING(A:A)),2),\"\")","v":{"$error":"#VALUE!"}}]
["1974-08-22",{"$f":"IF(_xlfn._TRO_TRAILING(A:A)<>\"\",ROUNDUP(_xlfn.RANK.EQ(_xlfn._TRO_TRAILING(A:A),_xlfn._TRO_TRAILING(A:A),0)/COUNTA(_xlfn._TRO_TRAILING(A:A)),2),\"\")","v":{"$error":"#VALUE!"}}]
["1974-08-22",{"$f":"IF(_xlfn._TRO_TRAILING(A:A)<>\"\",ROUNDUP(_xlfn.RANK.EQ(_xlfn._TRO_TRAILING(A:A),_xlfn._TRO_TRAILING(A:A),0)/COUNTA(_xlfn._TRO_TRAILING(A:A)),2),\"\")","v":{"$error":"#VALUE!"}}]
["1974-08-22",{"$f":"IF(_xlfn._TRO_TRAILING(A:A)<>\"\",ROUNDUP(_xlfn.RANK.EQ(_xlfn._TRO_TRAILING(A:A),_xlfn._TRO_TRAILING(A:A),0)/COUNTA(_xlfn._TRO_TRAILING(A:A)),2),\"\")","v":{"$error":"#VALUE!"}}]
[null,{"$f":"IF(_xlfn._TRO_TRAILING(A:A)<>\"\",ROUNDUP(_xlfn.RANK.EQ(_xlfn._TRO_TRAILING(A:A),_xlfn._TRO_TRAILING(A:A),0)/COUNTA(_xlfn._TRO_TRAILING(A:A)),2),\"\")","v":{"$error":"#VALUE!"}}]
[null,{"$f":"IF(_xlfn._TRO_TRAILING(A:A)<>\"\",ROUNDUP(_xlfn.RANK.EQ(_xlfn._TRO_TRAILING(A:A),_xlfn._TRO_TRAILING(A:A),0)/COUNTA(_xlfn._TRO_TRAILING(A:A)),2),\"\")","v":{"$error":"#VALUE!"}}]
[null,{"$f":"IF(_xlfn._TRO_TRAILING(A:A)<>\"\",ROUNDUP(_xlfn.RANK.EQ(_xlfn._TRO_TRAILING(A:A),_xlfn._TRO_TRAILING(A:A),0)/COUNTA(_xlfn._TRO_TRAILING(A:A)),2),\"\")","v":{"$error":"#VALUE!"}}]
["1978-01-20",{"$f":"IF(_xlfn._TRO_TRAILING(A:A)<>\"\",ROUNDUP(_xlfn.RANK.EQ(_xlfn._TRO_TRAILING(A:A),_xlfn._TRO_TRAILING(A:A),0)/COUNTA(_xlfn._TRO_TRAILING(A:A)),2),\"\")","v":{"$error":"#VALUE!"}}]
["1971-09-10",{"$f":"IF(_xlfn._TRO_TRAILING(A:A)<>\"\",ROUNDUP(_xlfn.RANK.EQ(_xlfn._TRO_TRAILING(A:A),_xlfn._TRO_TRAILING(A:A),0)/COUNTA(_xlfn._TRO_TRAILING(A:A)),2),\"\")","v":{"$error":"#VALUE!"}}]
["1971-09-10",{"$f":"IF(_xlfn._TRO_TRAILING(A:A)<>\"\",ROUNDUP(_xlfn.RANK.EQ(_xlfn._TRO_TRAILING(A:A),_xlfn._TRO_TRAILING(A:A),0)/COUNTA(_xlfn._TRO_TRAILING(A:A)),2),\"\")","v":{"$error":"#VALUE!"}}]
[null,{"$f":"IF(_xlfn._TRO_TRAILING(A:A)<>\"\",ROUNDUP(_xlfn.RANK.EQ(_xlfn._TRO_TRAILING(A:A),_xlfn._TRO_TRAILING(A:A),0)/COUNTA(_xlfn._TRO_TRAILING(A:A)),2),\"\")","v":{"$error":"#VALUE!"}}]
[null,{"$f":"IF(_xlfn._TRO_TRAILING(A:A)<>\"\",ROUNDUP(_xlfn.RANK.EQ(_xlfn._TRO_TRAILING(A:A),_xlfn._TRO_TRAILING(A:A),0)/COUNTA(_xlfn._TRO_TRAILING(A:A)),2),\"\")","v":{"$error":"#VALUE!"}}]
[null,{"$f":"IF(_xlfn._TRO_TRAILING(A:A)<>\"\",ROUNDUP(_xlfn.RANK.EQ(_xlfn._TRO_TRAILING(A:A),_xlfn._TRO_TRAILING(A:A),0)/COUNTA(_xlfn._TRO_TRAILING(A:A)),2),\"\")","v":{"$error":"#VALUE!"}}]
[null,{"$f":"IF(_xlfn._TRO_TRAILING(A:A)<>\"\",ROUNDUP(_xlfn.RANK.EQ(_xlfn._TRO_TRAILING(A:A),_xlfn._TRO_TRAILING(A:A),0)/COUNTA(_xlfn._TRO_TRAILING(A:A)),2),\"\")","v":{"$error":"#VALUE!"}}]
["1983-03-09",{"$f":"IF(_xlfn._TRO_TRAILING(A:A)<>\"\",ROUNDUP(_xlfn.RANK.EQ(_xlfn._TRO_TRAILING(A:A),_xlfn._TRO_TRAILING(A:A),0)/COUNTA(_xlfn._TRO_TRAILING(A:A)),2),\"\")","v":{"$error":"#VALUE!"}}]
["1983-03-09",{"$f":"IF(_xlfn._TRO_TRAILING(A:A)<>\"\",ROUNDUP(_xlfn.RANK.EQ(_xlfn._TRO_TRAILING(A:A),_xlfn._TRO_TRAILING(A:A),0)/COUNTA(_xlfn._TRO_TRAILING(A:A)),2),\"\")","v":{"$error":"#VALUE!"}}]
["1983-03-09",{"$f":"IF(_xlfn._TRO_TRAILING(A:A)<>\"\",ROUNDUP(_xlfn.RANK.EQ(_xlfn._TRO_TRAILING(A:A),_xlfn._TRO_TRAILING(A:A),0)/COUNTA(_xlfn._TRO_TRAILING(A:A)),2),\"\")","v":{"$error":"#VALUE!"}}]
["1983-03-09",{"$f":"IF(_xlfn._TRO_TRAILING(A:A)<>\"\",ROUNDUP(_xlfn.RANK.EQ(_xlfn._TRO_TRAILING(A:A),_xlfn._TRO_TRAILING(A:A),0)/COUNTA(_xlfn._TRO_TRAILING(A:A)),2),\"\")","v":{"$error":"#VALUE!"}}]
["1983-03-09",{"$f":"IF(_xlfn._TRO_TRAILING(A:A)<>\"\",ROUNDUP(_xlfn.RANK.EQ(_xlfn._TRO_TRAILING(A:A),_xlfn._TRO_TRAILING(A:A),0)/COUNTA(_xlfn._TRO_TRAILING(A:A)),2),\"\")","v":{"$error":"#VALUE!"}}]
["1983-03-09",{"$f":"IF(_xlfn._TRO_TRAILING(A:A)<>\"\",ROUNDUP(_xlfn.RANK.EQ(_xlfn._TRO_TRAILING(A:A),_xlfn._TRO_TRAILING(A:A),0)/COUNTA(_xlfn._TRO_TRAILING(A:A)),2),\"\")","v":{"$error":"#VALUE!"}}]
["1983-03-09",{"$f":"IF(_xlfn._TRO_TRAILING(A:A)<>\"\",ROUNDUP(_xlfn.RANK.EQ(_xlfn._TRO_TRAILING(A:A),_xlfn._TRO_TRAILING(A:A),0)/COUNTA(_xlfn._TRO_TRAILING(A:A)),2),\"\")","v":{"$error":"#VALUE!"}}]
["1983-03-09",{"$f":"IF(_xlfn._TRO_TRAILING(A:A)<>\"\",ROUNDUP(_xlfn.RANK.EQ(_xlfn._TRO_TRAILING(A:A),_xlfn._TRO_TRAILING(A:A),0)/COUNTA(_xlfn._TRO_TRAILING(A:A)),2),\"\")","v":{"$error":"#VALUE!"}}]
["1963-01-11",{"$f":"IF(_xlfn._TRO_TRAILING(A:A)<>\"\",ROUNDUP(_xlfn.RANK.EQ(_xlfn._TRO_TRAILING(A:A),_xlfn._TRO_TRAILING(A:A),0)/COUNTA(_xlfn._TRO_TRAILING(A:A)),2),\"\")","v":{"$error":"#VALUE!"}}]
["1994-03-28",{"$f":"IF(_xlfn._TRO_TRAILING(A:A)<>\"\",ROUNDUP(_xlfn.RANK.EQ(_xlfn._TRO_TRAILING(A:A),_xlfn._TRO_TRAILING(A:A),0)/COUNTA(_xlfn._TRO_TRAILING(A:A)),2),\"\")","v":{"$error":"#VALUE!"}}]
["1994-03-28",{"$f":"IF(_xlfn._TRO_TRAILING(A:A)<>\"\",ROUNDUP(_xlfn.RANK.EQ(_xlfn._TRO_TRAILING(A:A),_xlfn._TRO_TRAILING(A:A),0)/COUNTA(_xlfn._TRO_TRAILING(A:A)),2),\"\")","v":{"$error":"#VALUE!"}}]
["1994-03-28",{"$f":"IF(_xlfn._TRO_TRAILING(A:A)<>\"\",ROUNDUP(_xlfn.RANK.EQ(_xlfn._TRO_TRAILING(A:A),_xlfn._TRO_TRAILING(A:A),0)/COUNTA(_xlfn._TRO_TRAILING(A:A)),2),\"\")","v":{"$error":"#VALUE!"}}]
["1994-03-28",{"$f":"IF(_xlfn._TRO_TRAILING(A:A)<>\"\",ROUNDUP(_xlfn.RANK.EQ(_xlfn._TRO_TRAILING(A:A),_xlfn._TRO_TRAILING(A:A),0)/COUNTA(_xlfn._TRO_TRAILING(A:A)),2),\"\")","v":{"$error":"#VALUE!"}}]
["1983-05-29",{"$f":"IF(_xlfn._TRO_TRAILING(A:A)<>\"\",ROUNDUP(_xlfn.RANK.EQ(_xlfn._TRO_TRAILING(A:A),_xlfn._TRO_TRAILING(A:A),0)/COUNTA(_xlfn._TRO_TRAILING(A:A)),2),\"\")","v":{"$error":"#VALUE!"}}]
[null,{"$f":"IF(_xlfn._TRO_TRAILING(A:A)<>\"\",ROUNDUP(_xlfn.RANK.EQ(_xlfn._TRO_TRAILING(A:A),_xlfn._TRO_TRAILING(A:A),0)/COUNTA(_xlfn._TRO_TRAILING(A:A)),2),\"\")","v":{"$error":"#VALUE!"}}]
[null,{"$f":"IF(_xlfn._TRO_TRAILING(A:A)<>\"\",ROUNDUP(_xlfn.RANK.EQ(_xlfn._TRO_TRAILING(A:A),_xlfn._TRO_TRAILING(A:A),0)/COUNTA(_xlfn._TRO_TRAILING(A:A)),2),\"\")","v":{"$error":"#VALUE!"}}]
["1983-11-17",{"$f":"IF(_xlfn._TRO_TRAILING(A:A)<>\"\",ROUNDUP(_xlfn.RANK.EQ(_xlfn._TRO_TRAILING(A:A),_xlfn._TRO_TRAILING(A:A),0)/COUNTA(_xlfn._TRO_TRAILING(A:A)),2),\"\")","v":{"$error":"#VALUE!"}}]
["1983-11-17",{"$f":"IF(_xlfn._TRO_TRAILING(A:A)<>\"\",ROUNDUP(_xlfn.RANK.EQ(_xlfn._TRO_TRAILING(A:A),_xlfn._TRO_TRAILING(A:A),0)/COUNTA(_xlfn._TRO_TRAILING(A:A)),2),\"\")","v":{"$error":"#VALUE!"}}]
["1983-11-17",{"$f":"IF(_xlfn._TRO_TRAILING(A:A)<>\"\",ROUNDUP(_xlfn.RANK.EQ(_xlfn._TRO_TRAILING(A:A),_xlfn._TRO_TRAILING(A:A),0)/COUNTA(_xlfn._TRO_TRAILING(A:A)),2),\"\")","v":{"$error":"#VALUE!"}}]
["1983-11-17",{"$f":"IF(_xlfn._TRO_TRAILING(A:A)<>\"\",ROUNDUP(_xlfn.RANK.EQ(_xlfn._TRO_TRAILING(A:A),_xlfn._TRO_TRAILING(A:A),0)/COUNTA(_xlfn._TRO_TRAILING(A:A)),2),\"\")","v":{"$error":"#VALUE!"}}]
[null,{"$f":"IF(_xlfn._TRO_TRAILING(A:A)<>\"\",ROUNDUP(_xlfn.RANK.EQ(_xlfn._TRO_TRAILING(A:A),_xlfn._TRO_TRAILING(A:A),0)/COUNTA(_xlfn._TRO_TRAILING(A:A)),2),\"\")","v":{"$error":"#VALUE!"}}]
["1977-11-04",{"$f":"IF(_xlfn._TRO_TRAILING(A:A)<>\"\",ROUNDUP(_xlfn.RANK.EQ(_xlfn._TRO_TRAILING(A:A),_xlfn._TRO_TRAILING(A:A),0)/COUNTA(_xlfn._TRO_TRAILING(A:A)),2),\"\")","v":{"$error":"#VALUE!"}}]
["1998-05-12",{"$f":"IF(_xlfn._TRO_TRAILING(A:A)<>\"\",ROUNDUP(_xlfn.RANK.EQ(_xlfn._TRO_TRAILING(A:A),_xlfn._TRO_TRAILING(A:A),0)/COUNTA(_xlfn._TRO_TRAILING(A:A)),2),\"\")","v":{"$error":"#VALUE!"}}]
["1998-05-12",{"$f":"IF(_xlfn._TRO_TRAILING(A:A)<>\"\",ROUNDUP(_xlfn.RANK.EQ(_xlfn._TRO_TRAILING(A:A),_xlfn._TRO_TRAILING(A:A),0)/COUNTA(_xlfn._TRO_TRAILING(A:A)),2),\"\")","v":{"$error":"#VALUE!"}}]
["1998-05-12",{"$f":"IF(_xlfn._TRO_TRAILING(A:A)<>\"\",ROUNDUP(_xlfn.RANK.EQ(_xlfn._TRO_TRAILING(A:A),_xlfn._TRO_TRAILING(A:A),0)/COUNTA(_xlfn._TRO_TRAILING(A:A)),2),\"\")","v":{"$error":"#VALUE!"}}]
[null,{"$f":"IF(_xlfn._TRO_TRAILING(A:A)<>\"\",ROUNDUP(_xlfn.RANK.EQ(_xlfn._TRO_TRAILING(A:A),_xlfn._TRO_TRAILING(A:A),0)/COUNTA(_xlfn._TRO_TRAILING(A:A)),2),\"\")","v":{"$error":"#VALUE!"}}]
[null,{"$f":"IF(_xlfn._TRO_TRAILING(A:A)<>\"\",ROUNDUP(_xlfn.RANK.EQ(_xlfn._TRO_TRAILING(A:A),_xlfn._TRO_TRAILING(A:A),0)/COUNTA(_xlfn._TRO_TRAILING(A:A)),2),\"\")","v":{"$error":"#VALUE!"}}]
["2002-04-06",{"$f":"IF(_xlfn._TRO_TRAILING(A:A)<>\"\",ROUNDUP(_xlfn.RANK.EQ(_xlfn._TRO_TRAILING(A:A),_xlfn._TRO_TRAILING(A:A),0)/COUNTA(_xlfn._TRO_TRAILING(A:A)),2),\"\")","v":""}]
[null,0.36]
[null,""]
[null,0.04]
[null,0.04]
[null,0.75]
[null,""]
[null,""]
[null,""]
[null,0.56000000000000005]
[null,0.56000000000000005]
[null,0.56000000000000005]
[null,""]
[null,""]
[null,""]
[null,""]
[null,0.13]
[null,0.13]
[null,""]
[null,0.68]
[null,0.68]
[null,0.31]
[null,0.31]
[null,0.31]
[null,0.31]
[null,0.31]
[null,0.97]
[null,0.97]
[null,0.96]
[null,0.96]
[null,""]
[null,0.18000000000000002]
[null,0.18000000000000002]
[null,0.18000000000000002]
[null,0.53]
[null,0.73]
[null,0.73]
[null,0.73]
[null,0.53]
[null,0.3]
[null,""]
[null,0.51]
[null,""]
[null,""]
[null,6.0000000000000005E-2]
[null,0.73]
[null,0.98]
[null,0.98]
[null,0.98]
[null,0.98]
[null,0.98]
[null,0.98]
[null,0.98]
[null,""]
[null,0.66]
[null,0.66]
[null,0.66]
[null,0.03]
[null,0.03]
[null,0.35000000000000003]
[null,0.35000000000000003]
[null,0.35000000000000003]
[null,""]
[null,0.22]
[null,""]
[null,0.14000000000000001]
[null,0.14000000000000001]
[null,0.01]
[null,0.01]
[null,0.51]
[null,""]
[null,0.52]
[null,0.52]
[null,0.52]
[null,0.33]
[null,0.33]
[null,0.33]
[null,0.33]
[null,0.33]
[null,""]
[null,""]
[null,""]
[null,""]
[null,""]
[null,0.8]
[null,0.82000000000000006]
[null,0.82000000000000006]
[null,0.82000000000000006]
[null,0.82000000000000006]
[null,0.82000000000000006]
[null,0.82000000000000006]
[null,0.82000000000000006]
[null,0.82000000000000006]
[null,0.82000000000000006]
[null,0.82000000000000006]
[null,0.82000000000000006]
[null,0.82000000000000006]
[null,0.82000000000000006]
[null,0.82000000000000006]
[null,0.82000000000000006]
[null,0.82000000000000006]
[null,0.82000000000000006]
[null,0.82000000000000006]
[null,0.82000000000000006]
[null,0.82000000000000006]
[null,0.82000000000000006]
[null,0.82000000000000006]
[null,""]
[null,""]
[null,0.05]
[null,0.55000000000000004]
[null,""]
[null,0.59]
[null,0.59]
[null,""]
[null,0.79]
[null,0.79]
[null,0.69000000000000006]
[null,0.69000000000000006]
[null,0.41000000000000003]
[null,0.19]
[null,0.19]
[null,0.19]
[null,""]
[null,""]
[null,0.39]
[null,""]
[null,""]
[null,0.8]
[null,0.45]
[null,0.23]
[null,""]
[null,""]
[null,""]
[null,""]
[null,0.08]
[null,0.08]
[null,""]
[null,0.56000000000000005]
[null,6.0000000000000005E-2]
[null,6.0000000000000005E-2]
[null,6.0000000000000005E-2]
[null,6.0000000000000005E-2]
[null,""]
[null,""]
[null,0.38]
[null,0.75]
[null,0.75]
[null,""]
[null,0.48]
[null,0.14000000000000001]
[null,0.81]
[null,0.6]
[null,""]
[null,0.82000000000000006]
[null,0.76]
[null,0.76]
[null,0.76]
[null,0.76]
[null,0.76]
[null,0.76]
[null,""]
[null,0.11]
[null,0.11]
[null,0.56000000000000005]
[null,""]
[null,""]
[null,""]
[null,0.48]
[null,0.68]
[null,0.17]
[null,""]
[null,""]
[null,0.16]
[null,""]
[null,0.23]
[null,0.23]
[null,0.23]
[null,0.23]
[null,0.23]
[null,0.23]
[null,0.23]
[null,0.23]
[null,0.23]
[null,0.23]
[null,0.23]
[null,0.23]
[null,0.23]
[null,0.23]
[null,0.23]
[null,0.23]
[null,""]
[null,""]
[null,0.3]
[null,""]
[null,""]
[null,""]
[null,""]
[null,""]
[null,""]
[null,0.49]
[null,0.49]
[null,0.49]
[null,0.49]
[null,0.49]
[null,0.79]
[null,""]
[null,""]
[null,0.16]
[null,""]
[null,0.11]
[null,""]
[null,""]
[null,""]
[null,0.45]
[null,0.45]
[null,0.45]
[null,0.45]
[null,0.45]
[null,0.63]
[null,0.81]
[null,0.81]
[null,""]
[null,""]
[null,""]
[null,""]
[null,""]
[null,""]
[null,""]
[null,""]
[null,""]
[null,""]
[null,""]
[null,0.91]
[null,0.91]
[null,0.91]
[null,0.91]
[null,0.91]
[null,0.91]
[null,0.91]
[null,""]
[null,0.47000000000000003]
[null,0.22]
[null,""]
[null,""]
[null,""]
[null,""]
[null,""]
[null,""]
[null,0.94000000000000006]
[null,0.94000000000000006]
[null,0.94000000000000006]
[null,0.94000000000000006]
[null,0.94000000000000006]
[null,0.55000000000000004]
[null,0.63]
[null,0.63]
[null,""]
[null,""]
[null,""]
[null,""]
[null,""]
[null,""]
[null,""]
[null,0.54]
[null,0.54]
[null,0.54]
[null,0.39]
[null,0.39]
[null,0.39]
[null,0.7]
[null,0.7]
[null,0.7]
[null,0.7]
[null,0.15000000000000002]
[null,0.15000000000000002]
[null,0.6]
[null,0.6]
[null,0.6]
[null,0.6]
[null,0.6]
[null,0.6]
[null,0.6]
[null,9.9999999999999992E-2]
[null,0.21000000000000002]
[null,0.21000000000000002]
[null,0.21000000000000002]
[null,0.12]
[null,0.12]
[null,""]
[null,""]
[null,0.72]
[null,0.72]
[null,""]
[null,""]
[null,""]
[null,""]
[null,""]
[null,""]
[null,""]
[null,0.17]
[null,0.17]
[null,0.17]
[null,0.41000000000000003]
[null,""]
[null,0.05]
[null,0.59]
[null,""]
[null,0.31]
[null,0.64]
[null,0.64]
[null,0.64]
[null,0.64]
[null,0.64]
[null,""]
[null,""]
[null,""]
[null,0.57999999999999996]
[null,0.7]
[null,0.7]
[null,""]
[null,""]
[null,""]
[null,""]
[null,0.42]
[null,0.42]
[null,0.42]
[null,0.42]
[null,0.42]
[null,0.42]
[null,0.42]
[null,0.42]
[null,0.78]
[null,0.09]
[null,0.09]
[null,0.09]
[null,0.09]
[null,0.4]
[null,""]
[null,""]
[null,0.37]
[null,0.37]
[null,0.37]
[null,0.37]
[null,""]
[null,0.57999999999999996]
[null,0.02]
[null,0.02]
[null,0.02]
[null,""]
[null,""]
[null,0.01]